{"text_format":"1","workbook":"xlsx","n_sheets":9,"sheets":["予備","初期画面","メニュー","印刷名簿","名簿入力","人数入力","CSV","コード","設定"],"not_rendered":{"charts":0,"images":3,"macros":1,"external_links":0,"defined_names":12,"comments":1,"pivot_tables":0},"unopened":[],"bounds":{"document_bytes":16777216,"sheet_cells":100000,"rows_first":2000,"rows_last":500,"rows_between":2000,"halvings":0,"cell_chars":16384,"cell_head_chars":4096},"cells_cut":0,"cells_raw":0,"read":"whole","date_system":"1900"}

{"sheet":"予備","index":0,"n_rows":0,"n_cols":0,"rows_kept":0,"cut":false,"hidden":false,"merged":[]}

{"sheet":"初期画面","index":1,"n_rows":21,"n_cols":24,"rows_kept":21,"cut":false,"hidden":false,"merged":[[20,3,20,8],[3,22,3,29],[1,11,1,24],[18,14,19,18],[1,1,1,9],[3,3,3,9],[3,12,3,19]]}
[]
[null,"【マクロを有効】 にするために\nケースに応じて操作してください。",null,null,null,null,null,null,null,null,null,"「マクロを有効」にしないと操作できません。ケースに応じて「有効」にしてください。\nエクセルのバージョンや設定･状況により、ファイルを開いた直後「マクロを有効」にする手順が異なります。"]
[null,null,null,"【ケース①】",null,null,null,null,null,null,null,null,null,"【ケース②】","大抵はこのケースです",null,null,null,null,null,null,null,"【ケース③】"]
[null,null,null,"ファイルを開いたら\n何もせずに下の青枠が表示された",null,null,null,null,null,null,null,null,"ファイルを開いたら\n画面上に「セキュリティの警告」が出る",null,null,null,null,null,null,null,null,null,"ケース②で「～の有効化」を押すと\nさらに小ウィンドウが現れた"]
[]
[null,null,null,"☞","そのまま操作ができます。",null,null,null,null,null,null,null,"☞","「コンテンツの有効化」をクリックする",null,null,null,null,null,null,null,null,"☞","「～有効」を選び「OK」を押す"]
[null,null,null,"※","ファイル使用２回目以降からこうなることも",null,null,null,null,null,null,null,"※","さらに別の小窓が現れる場合は右図のように対応"]
[]
[]
[]
[]
[]
[]
[]
[]
[]
[]
[]
[]
[]
[null,null,null,"この【OK】を押せば使用可能"]

{"sheet":"メニュー","index":2,"n_rows":0,"n_cols":0,"rows_kept":0,"cut":false,"hidden":true,"merged":[]}

{"sheet":"印刷名簿","index":3,"n_rows":345,"n_cols":119,"rows_kept":345,"cut":false,"hidden":true,"merged":[[49,3,50,9],[49,10,50,11],[92,3,93,9],[92,10,93,11],[135,3,136,9],[135,10,136,11],[178,3,179,9],[178,10,179,11],[221,3,222,9],[221,10,222,11],[264,3,265,9],[264,10,265,11],[307,3,308,9],[307,10,308,11],[344,23,344,24],[344,25,344,26],[344,27,344,28],[334,6,334,11],[334,12,334,16],[334,25,334,30],[335,6,335,11],[335,12,335,16],[335,25,335,30],[336,6,336,11],[336,12,336,16],[336,25,336,30],[331,6,331,11],[331,12,331,16],[331,25,331,30],[332,6,332,11],[332,12,332,16],[332,25,332,30],[344,29,344,30],[340,6,340,11],[340,12,340,16],[340,25,340,30],[341,6,341,11],[341,12,341,16],[341,25,341,30],[342,6,342,11],[342,12,342,16],[342,25,342,30],[337,6,337,11],[337,12,337,16],[337,25,337,30],[338,6,338,11],[338,12,338,16],[338,25,338,30],[339,6,339,11],[339,12,339,16],[339,25,339,30],[333,6,333,11],[333,12,333,16],[333,25,333,30],[328,6,328,11],[328,12,328,16],[328,25,328,30],[329,6,329,11],[329,12,329,16],[329,25,329,30],[330,6,330,11],[330,12,330,16],[330,25,330,30],[325,6,325,11],[325,12,325,16],[325,25,325,30],[326,6,326,11],[326,12,326,16],[326,25,326,30],[327,6,327,11],[327,12,327,16],[327,25,327,30],[322,6,322,11],[322,12,322,16],[322,25,322,30],[323,6,323,11],[323,12,323,16],[323,25,323,30],[324,6,324,11],[324,12,324,16],[324,25,324,30],[319,6,319,11],[319,12,319,16],[319,25,319,30],[320,6,320,11],[320,12,320,16],[320,25,320,30],[321,6,321,11],[321,12,321,16],[321,25,321,30],[316,6,316,11],[316,12,316,16],[316,25,316,30],[317,6,317,11],[317,12,317,16],[317,25,317,30],[318,6,318,11],[318,12,318,16],[318,25,318,30],[313,6,313,11],[313,12,313,16],[313,25,313,30],[314,6,314,11],[314,12,314,16],[314,25,314,30],[315,6,315,11],[315,12,315,16],[315,25,315,30],[311,17,312,17],[311,18,312,18],[311,19,312,19],[311,20,312,20],[311,21,312,21],[311,22,312,22],[311,23,312,23],[311,24,312,24],[311,25,312,30],[309,1,309,2],[309,3,309,5],[309,6,309,8],[309,9,309,11],[309,13,309,16],[311,1,312,1],[311,2,312,2],[311,3,312,3],[311,4,312,4],[311,5,312,5],[311,6,312,11],[311,12,312,16],[301,23,301,24],[301,25,301,26],[301,27,301,28],[301,29,301,30],[303,1,304,14],[306,1,306,2],[306,3,306,11],[306,12,307,12],[306,13,307,16],[307,1,308,2],[308,13,308,16],[297,6,297,11],[297,12,297,16],[297,25,297,30],[298,6,298,11],[298,12,298,16],[298,25,298,30],[299,6,299,11],[299,12,299,16],[299,25,299,30],[294,6,294,11],[294,12,294,16],[294,25,294,30],[295,6,295,11],[295,12,295,16],[295,25,295,30],[296,6,296,11],[296,12,296,16],[296,25,296,30],[291,6,291,11],[291,12,291,16],[291,25,291,30],[292,6,292,11],[292,12,292,16],[292,25,292,30],[293,6,293,11],[293,12,293,16],[293,25,293,30],[288,6,288,11],[288,12,288,16],[288,25,288,30],[289,6,289,11],[289,12,289,16],[289,25,289,30],[290,6,290,11],[290,12,290,16],[290,25,290,30],[285,6,285,11],[285,12,285,16],[285,25,285,30],[286,6,286,11],[286,12,286,16],[286,25,286,30],[287,6,287,11],[287,12,287,16],[287,25,287,30],[282,6,282,11],[282,12,282,16],[282,25,282,30],[283,6,283,11],[283,12,283,16],[283,25,283,30],[284,6,284,11],[284,12,284,16],[284,25,284,30],[279,6,279,11],[279,12,279,16],[279,25,279,30],[280,6,280,11],[280,12,280,16],[280,25,280,30],[281,6,281,11],[281,12,281,16],[281,25,281,30],[276,6,276,11],[276,12,276,16],[276,25,276,30],[277,6,277,11],[277,12,277,16],[277,25,277,30],[278,6,278,11],[278,12,278,16],[278,25,278,30],[273,6,273,11],[273,12,273,16],[273,25,273,30],[274,6,274,11],[274,12,274,16],[274,25,274,30],[275,6,275,11],[275,12,275,16],[275,25,275,30],[270,6,270,11],[270,12,270,16],[270,25,270,30],[271,6,271,11],[271,12,271,16],[271,25,271,30],[272,6,272,11],[272,12,272,16],[272,25,272,30],[268,17,269,17],[268,18,269,18],[268,19,269,19],[268,20,269,20],[268,21,269,21],[268,22,269,22],[268,23,269,23],[268,24,269,24],[268,25,269,30],[266,1,266,2],[266,3,266,5],[266,6,266,8],[266,9,266,11],[266,13,266,16],[268,1,269,1],[268,2,269,2],[268,3,269,3],[268,4,269,4],[268,5,269,5],[268,6,269,11],[268,12,269,16],[258,23,258,24],[258,25,258,26],[258,27,258,28],[258,29,258,30],[260,1,261,14],[263,1,263,2],[263,3,263,11],[263,12,264,12],[263,13,264,16],[264,1,265,2],[265,13,265,16],[254,6,254,11],[254,12,254,16],[254,25,254,30],[255,6,255,11],[255,12,255,16],[255,25,255,30],[256,6,256,11],[256,12,256,16],[256,25,256,30],[251,6,251,11],[251,12,251,16],[251,25,251,30],[252,6,252,11],[252,12,252,16],[252,25,252,30],[253,6,253,11],[253,12,253,16],[253,25,253,30],[248,6,248,11],[248,12,248,16],[248,25,248,30],[249,6,249,11],[249,12,249,16],[249,25,249,30],[250,6,250,11],[250,12,250,16],[250,25,250,30],[245,6,245,11],[245,12,245,16],[245,25,245,30],[246,6,246,11],[246,12,246,16],[246,25,246,30],[247,6,247,11],[247,12,247,16],[247,25,247,30],[242,6,242,11],[242,12,242,16],[242,25,242,30],[243,6,243,11],[243,12,243,16],[243,25,243,30],[244,6,244,11],[244,12,244,16],[244,25,244,30],[239,6,239,11],[239,12,239,16],[239,25,239,30],[240,6,240,11],[240,12,240,16],[240,25,240,30],[241,6,241,11],[241,12,241,16],[241,25,241,30],[236,6,236,11],[236,12,236,16],[236,25,236,30],[237,6,237,11],[237,12,237,16],[237,25,237,30],[238,6,238,11],[238,12,238,16],[238,25,238,30],[233,6,233,11],[233,12,233,16],[233,25,233,30],[234,6,234,11],[234,12,234,16],[234,25,234,30],[235,6,235,11],[235,12,235,16],[235,25,235,30],[230,6,230,11],[230,12,230,16],[230,25,230,30],[231,6,231,11],[231,12,231,16],[231,25,231,30],[232,6,232,11],[232,12,232,16],[232,25,232,30],[227,6,227,11],[227,12,227,16],[227,25,227,30],[228,6,228,11],[228,12,228,16],[228,25,228,30],[229,6,229,11],[229,12,229,16],[229,25,229,30],[225,17,226,17],[225,18,226,18],[225,19,226,19],[225,20,226,20],[225,21,226,21],[225,22,226,22],[225,23,226,23],[225,24,226,24],[225,25,226,30],[223,1,223,2],[223,3,223,5],[223,6,223,8],[223,9,223,11],[223,13,223,16],[225,1,226,1],[225,2,226,2],[225,3,226,3],[225,4,226,4],[225,5,226,5],[225,6,226,11],[225,12,226,16],[215,23,215,24],[215,25,215,26],[215,27,215,28],[215,29,215,30],[217,1,218,14],[220,1,220,2],[220,3,220,11],[220,12,221,12],[220,13,221,16],[221,1,222,2],[222,13,222,16],[211,6,211,11],[211,12,211,16],[211,25,211,30],[212,6,212,11],[212,12,212,16],[212,25,212,30],[213,6,213,11],[213,12,213,16],[213,25,213,30],[208,6,208,11],[208,12,208,16],[208,25,208,30],[209,6,209,11],[209,12,209,16],[209,25,209,30],[210,6,210,11],[210,12,210,16],[210,25,210,30],[205,6,205,11],[205,12,205,16],[205,25,205,30],[206,6,206,11],[206,12,206,16],[206,25,206,30],[207,6,207,11],[207,12,207,16],[207,25,207,30],[202,6,202,11],[202,12,202,16],[202,25,202,30],[203,6,203,11],[203,12,203,16],[203,25,203,30],[204,6,204,11],[204,12,204,16],[204,25,204,30],[199,6,199,11],[199,12,199,16],[199,25,199,30],[200,6,200,11],[200,12,200,16],[200,25,200,30],[201,6,201,11],[201,12,201,16],[201,25,201,30],[196,6,196,11],[196,12,196,16],[196,25,196,30],[197,6,197,11],[197,12,197,16],[197,25,197,30],[198,6,198,11],[198,12,198,16],[198,25,198,30],[193,6,193,11],[193,12,193,16],[193,25,193,30],[194,6,194,11],[194,12,194,16],[194,25,194,30],[195,6,195,11],[195,12,195,16],[195,25,195,30],[190,6,190,11],[190,12,190,16],[190,25,190,30],[191,6,191,11],[191,12,191,16],[191,25,191,30],[192,6,192,11],[192,12,192,16],[192,25,192,30],[187,6,187,11],[187,12,187,16],[187,25,187,30],[188,6,188,11],[188,12,188,16],[188,25,188,30],[189,6,189,11],[189,12,189,16],[189,25,189,30],[184,6,184,11],[184,12,184,16],[184,25,184,30],[185,6,185,11],[185,12,185,16],[185,25,185,30],[186,6,186,11],[186,12,186,16],[186,25,186,30],[182,17,183,17],[182,18,183,18],[182,19,183,19],[182,20,183,20],[182,21,183,21],[182,22,183,22],[182,23,183,23],[182,24,183,24],[182,25,183,30],[180,1,180,2],[180,3,180,5],[180,6,180,8],[180,9,180,11],[180,13,180,16],[182,1,183,1],[182,2,183,2],[182,3,183,3],[182,4,183,4],[182,5,183,5],[182,6,183,11],[182,12,183,16],[174,1,175,14],[177,1,177,2],[177,3,177,11],[177,12,178,12],[177,13,178,16],[178,1,179,2],[179,13,179,16],[0,1,0,20],[0,21,0,30],[52,17,52,30],[53,19,54,19],[53,20,54,20],[53,21,54,21],[53,22,54,22],[53,23,54,23],[53,24,54,24],[2,1,3,14],[5,12,6,12],[7,13,7,16],[5,3,5,11],[5,13,6,16],[39,6,39,11],[39,12,39,16],[40,6,40,11],[40,12,40,16],[41,6,41,11],[41,12,41,16],[13,6,13,11],[18,6,18,11],[18,12,18,16],[22,6,22,11],[45,1,46,14],[48,1,48,2],[48,3,48,11],[48,12,49,12],[48,13,49,16],[49,1,50,2],[50,13,50,16],[51,6,51,8],[96,1,97,1],[96,2,97,2],[96,3,97,3],[96,4,97,4],[96,5,97,5],[96,6,97,11],[96,12,97,16],[96,17,97,17],[96,18,97,18],[86,23,86,24],[86,25,86,26],[86,27,86,28],[86,29,86,30],[88,1,89,14],[82,25,82,30],[83,6,83,11],[83,12,83,16],[58,6,58,11],[58,12,58,16],[53,12,54,16],[83,25,83,30],[84,25,84,30],[79,25,79,30],[92,1,93,2],[93,13,93,16],[94,1,94,2],[94,3,94,5],[94,6,94,8],[94,9,94,11],[94,13,94,16],[91,1,91,2],[82,6,82,11],[82,12,82,16],[76,6,76,11],[76,12,76,16],[70,6,70,11],[70,12,70,16],[64,6,64,11],[64,12,64,16],[84,6,84,11],[84,12,84,16],[79,6,79,11],[79,12,79,16],[80,6,80,11],[80,12,80,16],[76,25,76,30],[77,6,77,11],[77,12,77,16],[77,25,77,30],[163,6,163,11],[163,12,163,16],[163,25,163,30],[164,6,164,11],[164,12,164,16],[164,25,164,30],[165,6,165,11],[165,12,165,16],[165,25,165,30],[160,6,160,11],[160,12,160,16],[134,1,134,2],[134,3,134,11],[134,12,135,12],[134,13,135,16],[135,1,136,2],[136,13,136,16],[137,1,137,2],[137,3,137,5],[137,6,137,8],[137,9,137,11],[137,13,137,16],[139,1,140,1],[139,2,140,2],[139,3,140,3],[139,4,140,4],[139,5,140,5],[139,6,140,11],[139,12,140,16],[160,25,160,30],[161,6,161,11],[161,12,161,16],[169,6,169,11],[169,12,169,16],[169,25,169,30],[170,6,170,11],[170,12,170,16],[170,25,170,30],[172,23,172,24],[172,25,172,26],[172,27,172,28],[172,29,172,30],[166,6,166,11],[166,12,166,16],[166,25,166,30],[167,6,167,11],[167,12,167,16],[167,25,167,30],[168,6,168,11],[168,12,168,16],[168,25,168,30],[161,25,161,30],[162,6,162,11],[162,12,162,16],[162,25,162,30],[157,6,157,11],[157,12,157,16],[157,25,157,30],[158,6,158,11],[158,12,158,16],[158,25,158,30],[159,6,159,11],[159,12,159,16],[159,25,159,30],[154,6,154,11],[154,12,154,16],[154,25,154,30],[155,6,155,11],[155,12,155,16],[155,25,155,30],[156,6,156,11],[156,12,156,16],[156,25,156,30],[151,6,151,11],[151,12,151,16],[151,25,151,30],[152,6,152,11],[152,12,152,16],[152,25,152,30],[153,6,153,11],[153,12,153,16],[153,25,153,30],[148,6,148,11],[148,12,148,16],[148,25,148,30],[149,6,149,11],[149,12,149,16],[149,25,149,30],[150,6,150,11],[150,12,150,16],[150,25,150,30],[145,6,145,11],[145,12,145,16],[145,25,145,30],[146,6,146,11],[146,12,146,16],[146,25,146,30],[147,6,147,11],[147,12,147,16],[147,25,147,30],[142,6,142,11],[142,12,142,16],[142,25,142,30],[143,6,143,11],[143,12,143,16],[143,25,143,30],[144,6,144,11],[144,12,144,16],[144,25,144,30],[141,6,141,11],[141,12,141,16],[141,25,141,30],[139,25,140,30],[124,6,124,11],[124,12,124,16],[124,25,124,30],[125,6,125,11],[125,12,125,16],[125,25,125,30],[126,6,126,11],[126,12,126,16],[126,25,126,30],[131,1,132,14],[127,6,127,11],[127,12,127,16],[127,25,127,30],[129,23,129,24],[129,25,129,26],[129,27,129,28],[139,19,140,19],[139,20,140,20],[139,21,140,21],[139,17,140,17],[139,18,140,18],[121,25,121,30],[122,6,122,11],[122,12,122,16],[122,25,122,30],[123,6,123,11],[123,12,123,16],[123,25,123,30],[118,6,118,11],[118,12,118,16],[118,25,118,30],[119,6,119,11],[119,12,119,16],[119,25,119,30],[120,6,120,11],[120,12,120,16],[120,25,120,30],[139,22,140,22],[139,23,140,23],[139,24,140,24],[129,29,129,30],[121,6,121,11],[121,12,121,16],[115,25,115,30],[116,6,116,11],[116,12,116,16],[116,25,116,30],[117,6,117,11],[117,12,117,16],[117,25,117,30],[112,6,112,11],[112,12,112,16],[112,25,112,30],[113,6,113,11],[113,12,113,16],[113,25,113,30],[114,6,114,11],[114,12,114,16],[114,25,114,30],[109,6,109,11],[109,12,109,16],[109,25,109,30],[110,6,110,11],[110,12,110,16],[110,25,110,30],[111,6,111,11],[111,12,111,16],[111,25,111,30],[115,6,115,11],[115,12,115,16],[106,25,106,30],[107,6,107,11],[107,12,107,16],[107,25,107,30],[108,6,108,11],[108,12,108,16],[108,25,108,30],[103,6,103,11],[103,12,103,16],[103,25,103,30],[104,6,104,11],[104,12,104,16],[104,25,104,30],[105,6,105,11],[105,12,105,16],[105,25,105,30],[100,6,100,11],[100,12,100,16],[100,25,100,30],[101,6,101,11],[101,12,101,16],[101,25,101,30],[102,6,102,11],[102,12,102,16],[102,25,102,30],[106,6,106,11],[106,12,106,16],[98,25,98,30],[99,6,99,11],[99,12,99,16],[99,25,99,30],[96,25,97,30],[91,3,91,11],[91,12,92,12],[91,13,92,16],[96,19,97,19],[96,20,97,20],[96,21,97,21],[96,22,97,22],[96,23,97,23],[96,24,97,24],[80,25,80,30],[81,6,81,11],[81,12,81,16],[81,25,81,30],[98,6,98,11],[98,12,98,16],[78,6,78,11],[78,12,78,16],[78,25,78,30],[73,25,73,30],[74,6,74,11],[74,12,74,16],[74,25,74,30],[75,6,75,11],[75,12,75,16],[75,25,75,30],[70,25,70,30],[71,6,71,11],[71,12,71,16],[71,25,71,30],[72,6,72,11],[72,12,72,16],[72,25,72,30],[73,6,73,11],[73,12,73,16],[67,25,67,30],[68,6,68,11],[68,12,68,16],[68,25,68,30],[69,6,69,11],[69,12,69,16],[69,25,69,30],[64,25,64,30],[65,6,65,11],[65,12,65,16],[65,25,65,30],[66,6,66,11],[66,12,66,16],[66,25,66,30],[61,6,61,11],[61,12,61,16],[61,25,61,30],[62,6,62,11],[62,12,62,16],[62,25,62,30],[63,6,63,11],[63,12,63,16],[63,25,63,30],[67,6,67,11],[67,12,67,16],[58,25,58,30],[59,6,59,11],[59,12,59,16],[59,25,59,30],[60,6,60,11],[60,12,60,16],[60,25,60,30],[55,6,55,11],[55,12,55,16],[55,25,55,30],[56,6,56,11],[56,12,56,16],[56,25,56,30],[57,6,57,11],[57,12,57,16],[57,25,57,30],[9,17,9,30],[20,25,20,30],[21,6,21,11],[21,12,21,16],[18,25,18,30],[23,6,23,11],[23,12,23,16],[23,25,23,30],[24,6,24,11],[24,12,24,16],[24,25,24,30],[22,25,22,30],[22,12,22,16],[38,6,38,11],[38,12,38,16],[35,6,35,11],[53,1,54,1],[53,2,54,2],[53,3,54,3],[53,4,54,4],[53,5,54,5],[53,6,54,11],[53,25,54,30],[51,9,51,11],[51,13,51,16],[51,1,51,2],[51,3,51,5],[10,12,11,16],[10,6,11,11],[10,5,11,5],[10,4,11,4],[10,3,11,3],[15,6,15,11],[15,12,15,16],[15,25,15,30],[16,6,16,11],[16,12,16,16],[16,25,16,30],[17,6,17,11],[17,12,17,16],[14,6,14,11],[14,12,14,16],[14,25,14,30],[19,6,19,11],[19,12,19,16],[19,25,19,30],[20,6,20,11],[20,12,20,16],[2,18,2,26],[6,1,7,2],[8,1,8,2],[13,12,13,16],[5,26,5,28],[5,18,5,25],[5,1,5,2],[5,29,6,30],[7,29,7,30],[3,18,3,26],[2,29,2,30],[3,29,3,30],[2,27,2,28],[3,27,3,28],[5,17,6,17],[8,29,8,30],[8,13,8,16],[8,3,8,5],[8,6,8,8],[8,9,8,11],[12,6,12,11],[12,12,12,16],[13,25,13,30],[6,10,7,11],[6,3,7,9],[37,25,37,30],[10,1,11,1],[10,25,11,30],[31,25,31,30],[31,6,31,11],[31,12,31,16],[10,2,11,2],[29,6,29,11],[29,25,29,30],[30,6,30,11],[30,12,30,16],[30,25,30,30],[27,6,27,11],[27,12,27,16],[27,25,27,30],[28,6,28,11],[28,12,28,16],[28,25,28,30],[29,12,29,16],[26,6,26,11],[26,12,26,16],[26,25,26,30],[25,6,25,11],[25,12,25,16],[53,17,54,17],[53,18,54,18],[35,12,35,16],[32,6,32,11],[32,12,32,16],[33,6,33,11],[33,12,33,16],[43,29,43,30],[43,27,43,28],[43,25,43,26],[10,18,11,18],[10,17,11,17],[32,25,32,30],[33,25,33,30],[34,25,34,30],[35,25,35,30],[43,23,43,24],[40,25,40,30],[41,25,41,30],[38,25,38,30],[39,25,39,30],[25,25,25,30],[21,25,21,30],[17,25,17,30],[12,25,12,30],[36,25,36,30],[34,6,34,11],[34,12,34,16],[36,6,36,11],[36,12,36,16]],"merged_total":1002,"flags":["merged_cut"]}
[null,"このシートを印刷したものを、作品持ち込み時に必ずご持参ください。\n ファイル送信後の訂正は　【赤で手書き】 のうえ、作品と一緒にご持参ください。",null,null,null,null,null,null,null,null,null,null,null,null,null,null,null,null,null,null,null,"事務局へ送信するファイルを作成"]
[]
[null,{"$f":"\"第\" & 設定!$B$10 & \"回席書大会(\" & 設定!$B$7 & 設定!$B$8 & \")\"","v":"第65回席書大会(R1)"},null,null,null,null,null,null,null,null,null,null,null,null,null,null,null,null,"メールでの申込時からの変更の確認",null,null,null,null,null,null,null,null,"チェック １",null,"チェック ２"]
[null,null,null,null,null,null,null,null,null,null,null,null,null,null,null,1,{"$f":"\"/\" & 設定!$B$36","v":"/0"},null,"【 不参加 】　無 ・ 有 （　　　　名）\n【 追　 加 】　無 ・ 有 （　　　　名）",null,null,null,null,null,null,null,null,"事務局\n使用欄",null,"事務局\n使用欄"]
[]
[null,"学校番号",null,"学　　校　　名",null,null,null,null,null,null,null,null,"担 当",{"$f":"設定!$B$18","v":0},null,null,null,"人数","小　学　生",null,null,null,null,null,null,null,"中　学　生",null,null,"合計\n人数"]
[null,{"$f":"設定!$B$16","v":0},null,{"$f":"設定!$B$14","v":0},null,null,null,null,null,null,"学校",null,null,null,null,null,null,null,"硬1","硬2","1年","2年","3年","4年","5年","6年","1年","2年","3年"]
[null,null,null,null,null,null,null,null,null,null,null,null,"電 話",{"$f":"設定!$B$21","v":0},null,null,null,"申込",{"$f":"設定!$B$24","v":0},{"$f":"設定!$B$25","v":0},{"$f":"設定!$B$26","v":0},{"$f":"設定!$B$27","v":0},{"$f":"設定!$B$28","v":0},{"$f":"設定!$B$29","v":0},{"$f":"設定!$B$30","v":0},{"$f":"設定!$B$31","v":0},{"$f":"設定!$B$32","v":0},{"$f":"設定!$B$33","v":0},{"$f":"設定!$B$34","v":0},{"$f":"設定!$B$35","v":0}]
[null,"実施日",null,{"$f":"設定!$B$20","v":"00:00:00"},null,null,"全児童生徒数",null,null,{"$f":"設定!$B$19 & \"人\"","v":"人"},null,null,"FAX",{"$f":"設定!$B$22","v":0},null,null,null,"参加"]
[null,null,null,null,null,null,null,null,null,null,null,null,null,null,null,null,null,"参加枠：申込時から不参加･追加がある部門のみ【赤】で人数記入。(±0で同数の場合も)"]
[null,"Check","No","硬筆","学年","組","児童生徒氏名",null,null,null,null,null,"じどうせいとしめい",null,null,null,null,"双子","確認","入選","佳作","秀作","特選","推薦","特別","特別賞名称"]
[]
[null,null,null,null,null,null,null,null,null,null,null,null,null,null,null,null,null,null,null,null,null,null,null,null,null,null,null,null,null,null,null,null,null,null,null,null,null,null,null,null,null,null,null,null,null,null,null,null,null,null,null,null,null,null,null,null,null,null,null,null,null,null,null,null,null,null,null,null,null,null,null,null,null,null,null,null,null,null,null,null,null,null,null,null,null,null,null,null,null,null,null,null,null,null,null,null,null,null,null,null,null,null,null,null,null,null,null,null,null,null,null,null,null,null,null,null,null,null,"c1"]
[null,null,null,null,null,null,null,null,null,null,null,null,null,null,null,null,null,null,null,null,null,null,null,null,null,null,null,null,null,null,null,null,null,null,null,null,null,null,null,null,null,null,null,null,null,null,null,null,null,null,null,null,null,null,null,null,null,null,null,null,null,null,null,null,null,null,null,null,null,null,null,null,null,null,null,null,null,null,null,null,null,null,null,null,null,null,null,null,null,null,null,null,null,null,null,null,null,null,null,null,null,null,null,null,null,null,null,null,null,null,null,null,null,null,null,null,null,null,"c2"]
[null,null,null,null,null,null,null,null,null,null,null,null,null,null,null,null,null,null,null,null,null,null,null,null,null,null,null,null,null,null,null,null,null,null,null,null,null,null,null,null,null,null,null,null,null,null,null,null,null,null,null,null,null,null,null,null,null,null,null,null,null,null,null,null,null,null,null,null,null,null,null,null,null,null,null,null,null,null,null,null,null,null,null,null,null,null,null,null,null,null,null,null,null,null,null,null,null,null,null,null,null,null,null,null,null,null,null,null,null,null,null,null,null,null,null,null,null,null,"c3"]
[null,null,null,null,null,null,null,null,null,null,null,null,null,null,null,null,null,null,null,null,null,null,null,null,null,null,null,null,null,null,null,null,null,null,null,null,null,null,null,null,null,null,null,null,null,null,null,null,null,null,null,null,null,null,null,null,null,null,null,null,null,null,null,null,null,null,null,null,null,null,null,null,null,null,null,null,null,null,null,null,null,null,null,null,null,null,null,null,null,null,null,null,null,null,null,null,null,null,null,null,null,null,null,null,null,null,null,null,null,null,null,null,null,null,null,null,null,null,"k1"]
[null,null,null,null,null,null,null,null,null,null,null,null,null,null,null,null,null,null,null,null,null,null,null,null,null,null,null,null,null,null,null,null,null,null,null,null,null,null,null,null,null,null,null,null,null,null,null,null,null,null,null,null,null,null,null,null,null,null,null,null,null,null,null,null,null,null,null,null,null,null,null,null,null,null,null,null,null,null,null,null,null,null,null,null,null,null,null,null,null,null,null,null,null,null,null,null,null,null,null,null,null,null,null,null,null,null,null,null,null,null,null,null,null,null,null,null,null,null,"k1"]
[null,null,null,null,null,null,null,null,null,null,null,null,null,null,null,null,null,null,null,null,null,null,null,null,null,null,null,null,null,null,null,null,null,null,null,null,null,null,null,null,null,null,null,null,null,null,null,null,null,null,null,null,null,null,null,null,null,null,null,null,null,null,null,null,null,null,null,null,null,null,null,null,null,null,null,null,null,null,null,null,null,null,null,null,null,null,null,null,null,null,null,null,null,null,null,null,null,null,null,null,null,null,null,null,null,null,null,null,null,null,null,null,null,null,null,null,null,null,"k2"]
[null,null,null,null,null,null,null,null,null,null,null,null,null,null,null,null,null,null,null,null,null,null,null,null,null,null,null,null,null,null,null,null,null,null,null,null,null,null,null,null,null,null,null,null,null,null,null,null,null,null,null,null,null,null,null,null,null,null,null,null,null,null,null,null,null,null,null,null,null,null,null,null,null,null,null,null,null,null,null,null,null,null,null,null,null,null,null,null,null,null,null,null,null,null,null,null,null,null,null,null,null,null,null,null,null,null,null,null,null,null,null,null,null,null,null,null,null,null,"k2"]
[null,null,null,null,null,null,null,null,null,null,null,null,null,null,null,null,null,null,null,null,null,null,null,null,null,null,null,null,null,null,null,null,null,null,null,null,null,null,null,null,null,null,null,null,null,null,null,null,null,null,null,null,null,null,null,null,null,null,null,null,null,null,null,null,null,null,null,null,null,null,null,null,null,null,null,null,null,null,null,null,null,null,null,null,null,null,null,null,null,null,null,null,null,null,null,null,null,null,null,null,null,null,null,null,null,null,null,null,null,null,null,null,null,null,null,null,null,null,"k2"]
[null,null,null,null,null,null,null,null,null,null,null,null,null,null,null,null,null,null,null,null,null,null,null,null,null,null,null,null,null,null,null,null,null,null,null,null,null,null,null,null,null,null,null,null,null,null,null,null,null,null,null,null,null,null,null,null,null,null,null,null,null,null,null,null,null,null,null,null,null,null,null,null,null,null,null,null,null,null,null,null,null,null,null,null,null,null,null,null,null,null,null,null,null,null,null,null,null,null,null,null,null,null,null,null,null,null,null,null,null,null,null,null,null,null,null,null,null,null,"k2"]
[null,null,null,null,null,null,null,null,null,null,null,null,null,null,null,null,null,null,null,null,null,null,null,null,null,null,null,null,null,null,null,null,null,null,null,null,null,null,null,null,null,null,null,null,null,null,null,null,null,null,null,null,null,null,null,null,null,null,null,null,null,null,null,null,null,null,null,null,null,null,null,null,null,null,null,null,null,null,null,null,null,null,null,null,null,null,null,null,null,null,null,null,null,null,null,null,null,null,null,null,null,null,null,null,null,null,null,null,null,null,null,null,null,null,null,null,null,null,"k2"]
[null,null,null,null,null,null,null,null,null,null,null,null,null,null,null,null,null,null,null,null,null,null,null,null,null,null,null,null,null,null,null,null,null,null,null,null,null,null,null,null,null,null,null,null,null,null,null,null,null,null,null,null,null,null,null,null,null,null,null,null,null,null,null,null,null,null,null,null,null,null,null,null,null,null,null,null,null,null,null,null,null,null,null,null,null,null,null,null,null,null,null,null,null,null,null,null,null,null,null,null,null,null,null,null,null,null,null,null,null,null,null,null,null,null,null,null,null,null,"s1"]
[null,null,null,null,null,null,null,null,null,null,null,null,null,null,null,null,null,null,null,null,null,null,null,null,null,null,null,null,null,null,null,null,null,null,null,null,null,null,null,null,null,null,null,null,null,null,null,null,null,null,null,null,null,null,null,null,null,null,null,null,null,null,null,null,null,null,null,null,null,null,null,null,null,null,null,null,null,null,null,null,null,null,null,null,null,null,null,null,null,null,null,null,null,null,null,null,null,null,null,null,null,null,null,null,null,null,null,null,null,null,null,null,null,null,null,null,null,null,"s1"]
[null,null,null,null,null,null,null,null,null,null,null,null,null,null,null,null,null,null,null,null,null,null,null,null,null,null,null,null,null,null,null,null,null,null,null,null,null,null,null,null,null,null,null,null,null,null,null,null,null,null,null,null,null,null,null,null,null,null,null,null,null,null,null,null,null,null,null,null,null,null,null,null,null,null,null,null,null,null,null,null,null,null,null,null,null,null,null,null,null,null,null,null,null,null,null,null,null,null,null,null,null,null,null,null,null,null,null,null,null,null,null,null,null,null,null,null,null,null,"s1"]
[null,null,null,null,null,null,null,null,null,null,null,null,null,null,null,null,null,null,null,null,null,null,null,null,null,null,null,null,null,null,null,null,null,null,null,null,null,null,null,null,null,null,null,null,null,null,null,null,null,null,null,null,null,null,null,null,null,null,null,null,null,null,null,null,null,null,null,null,null,null,null,null,null,null,null,null,null,null,null,null,null,null,null,null,null,null,null,null,null,null,null,null,null,null,null,null,null,null,null,null,null,null,null,null,null,null,null,null,null,null,null,null,null,null,null,null,null,null,"s1"]
[null,null,null,null,null,null,null,null,null,null,null,null,null,null,null,null,null,null,null,null,null,null,null,null,null,null,null,null,null,null,null,null,null,null,null,null,null,null,null,null,null,null,null,null,null,null,null,null,null,null,null,null,null,null,null,null,null,null,null,null,null,null,null,null,null,null,null,null,null,null,null,null,null,null,null,null,null,null,null,null,null,null,null,null,null,null,null,null,null,null,null,null,null,null,null,null,null,null,null,null,null,null,null,null,null,null,null,null,null,null,null,null,null,null,null,null,null,null,"s1"]
[null,null,null,null,null,null,null,null,null,null,null,null,null,null,null,null,null,null,null,null,null,null,null,null,null,null,null,null,null,null,null,null,null,null,null,null,null,null,null,null,null,null,null,null,null,null,null,null,null,null,null,null,null,null,null,null,null,null,null,null,null,null,null,null,null,null,null,null,null,null,null,null,null,null,null,null,null,null,null,null,null,null,null,null,null,null,null,null,null,null,null,null,null,null,null,null,null,null,null,null,null,null,null,null,null,null,null,null,null,null,null,null,null,null,null,null,null,null,"s1"]
[null,null,null,null,null,null,null,null,null,null,null,null,null,null,null,null,null,null,null,null,null,null,null,null,null,null,null,null,null,null,null,null,null,null,null,null,null,null,null,null,null,null,null,null,null,null,null,null,null,null,null,null,null,null,null,null,null,null,null,null,null,null,null,null,null,null,null,null,null,null,null,null,null,null,null,null,null,null,null,null,null,null,null,null,null,null,null,null,null,null,null,null,null,null,null,null,null,null,null,null,null,null,null,null,null,null,null,null,null,null,null,null,null,null,null,null,null,null,"s1"]
[null,null,null,null,null,null,null,null,null,null,null,null,null,null,null,null,null,null,null,null,null,null,null,null,null,null,null,null,null,null,null,null,null,null,null,null,null,null,null,null,null,null,null,null,null,null,null,null,null,null,null,null,null,null,null,null,null,null,null,null,null,null,null,null,null,null,null,null,null,null,null,null,null,null,null,null,null,null,null,null,null,null,null,null,null,null,null,null,null,null,null,null,null,null,null,null,null,null,null,null,null,null,null,null,null,null,null,null,null,null,null,null,null,null,null,null,null,null,"s1"]
[null,null,null,null,null,null,null,null,null,null,null,null,null,null,null,null,null,null,null,null,null,null,null,null,null,null,null,null,null,null,null,null,null,null,null,null,null,null,null,null,null,null,null,null,null,null,null,null,null,null,null,null,null,null,null,null,null,null,null,null,null,null,null,null,null,null,null,null,null,null,null,null,null,null,null,null,null,null,null,null,null,null,null,null,null,null,null,null,null,null,null,null,null,null,null,null,null,null,null,null,null,null,null,null,null,null,null,null,null,null,null,null,null,null,null,null,null,null,"s1"]
[null,null,null,null,null,null,null,null,null,null,null,null,null,null,null,null,null,null,null,null,null,null,null,null,null,null,null,null,null,null,null,null,null,null,null,null,null,null,null,null,null,null,null,null,null,null,null,null,null,null,null,null,null,null,null,null,null,null,null,null,null,null,null,null,null,null,null,null,null,null,null,null,null,null,null,null,null,null,null,null,null,null,null,null,null,null,null,null,null,null,null,null,null,null,null,null,null,null,null,null,null,null,null,null,null,null,null,null,null,null,null,null,null,null,null,null,null,null,"s1"]
[null,null,null,null,null,null,null,null,null,null,null,null,null,null,null,null,null,null,null,null,null,null,null,null,null,null,null,null,null,null,null,null,null,null,null,null,null,null,null,null,null,null,null,null,null,null,null,null,null,null,null,null,null,null,null,null,null,null,null,null,null,null,null,null,null,null,null,null,null,null,null,null,null,null,null,null,null,null,null,null,null,null,null,null,null,null,null,null,null,null,null,null,null,null,null,null,null,null,null,null,null,null,null,null,null,null,null,null,null,null,null,null,null,null,null,null,null,null,"s1"]
[null,null,null,null,null,null,null,null,null,null,null,null,null,null,null,null,null,null,null,null,null,null,null,null,null,null,null,null,null,null,null,null,null,null,null,null,null,null,null,null,null,null,null,null,null,null,null,null,null,null,null,null,null,null,null,null,null,null,null,null,null,null,null,null,null,null,null,null,null,null,null,null,null,null,null,null,null,null,null,null,null,null,null,null,null,null,null,null,null,null,null,null,null,null,null,null,null,null,null,null,null,null,null,null,null,null,null,null,null,null,null,null,null,null,null,null,null,null,"s1"]
[null,null,null,null,null,null,null,null,null,null,null,null,null,null,null,null,null,null,null,null,null,null,null,null,null,null,null,null,null,null,null,null,null,null,null,null,null,null,null,null,null,null,null,null,null,null,null,null,null,null,null,null,null,null,null,null,null,null,null,null,null,null,null,null,null,null,null,null,null,null,null,null,null,null,null,null,null,null,null,null,null,null,null,null,null,null,null,null,null,null,null,null,null,null,null,null,null,null,null,null,null,null,null,null,null,null,null,null,null,null,null,null,null,null,null,null,null,null,"s1"]
[null,null,null,null,null,null,null,null,null,null,null,null,null,null,null,null,null,null,null,null,null,null,null,null,null,null,null,null,null,null,null,null,null,null,null,null,null,null,null,null,null,null,null,null,null,null,null,null,null,null,null,null,null,null,null,null,null,null,null,null,null,null,null,null,null,null,null,null,null,null,null,null,null,null,null,null,null,null,null,null,null,null,null,null,null,null,null,null,null,null,null,null,null,null,null,null,null,null,null,null,null,null,null,null,null,null,null,null,null,null,null,null,null,null,null,null,null,null,"s1"]
[null,null,null,null,null,null,null,null,null,null,null,null,null,null,null,null,null,null,null,null,null,null,null,null,null,null,null,null,null,null,null,null,null,null,null,null,null,null,null,null,null,null,null,null,null,null,null,null,null,null,null,null,null,null,null,null,null,null,null,null,null,null,null,null,null,null,null,null,null,null,null,null,null,null,null,null,null,null,null,null,null,null,null,null,null,null,null,null,null,null,null,null,null,null,null,null,null,null,null,null,null,null,null,null,null,null,null,null,null,null,null,null,null,null,null,null,null,null,"s1"]
["□"]
["□"]
["□"]
["□"]
["□"]
[]
[null,null,null,null,null,null,null,null,null,null,null,null,null,null,null,null,null,null,null,null,{"$f":"設定!$B$14&\"学校\"","v":"学校"},"①",null,1,null,2,null,3,null,4]
[]
[null,{"$f":"\"第\" & 設定!$B$10 & \"回席書大会(\" & 設定!$B$7 & 設定!$B$8 & \")\"","v":"第65回席書大会(R1)"}]
[null,null,null,null,null,null,null,null,null,null,null,null,null,null,null,2,{"$f":"\"/\" & 設定!$B$36","v":"/0"}]
[]
[null,"学校番号",null,"学　　校　　名",null,null,null,null,null,null,null,null,"担 当",{"$f":"設定!$B$18","v":0}]
[null,{"$f":"設定!$B$16","v":0},null,{"$f":"設定!$B$14","v":0},null,null,null,null,null,null,"学校"]
[null,null,null,null,null,null,null,null,null,null,null,null,"電 話",{"$f":"設定!$B$21","v":0}]
[null,"実施日",null,{"$f":"設定!$B$20","v":"00:00:00"},null,null,"全児童生徒数",null,null,{"$f":"設定!$B$19 & \"人\"","v":"人"},null,null,"FAX",{"$f":"設定!$B$22","v":0}]
[]
[null,"Check","No","硬筆","学年","組","児童生徒氏名",null,null,null,null,null,"じどうせいとしめい",null,null,null,null,"双子","確認","入選","佳作","秀作","特選","推薦","特別"]
[]
[null,null,null,null,null,null,null,null,null,null,null,null,null,null,null,null,null,null,null,null,null,null,null,null,null,null,null,null,null,null,null,null,null,null,null,null,null,null,null,null,null,null,null,null,null,null,null,null,null,null,null,null,null,null,null,null,null,null,null,null,null,null,null,null,null,null,null,null,null,null,null,null,null,null,null,null,null,null,null,null,null,null,null,null,null,null,null,null,null,null,null,null,null,null,null,null,null,null,null,null,null,null,null,null,null,null,null,null,null,null,null,null,null,null,null,null,null,null,"s1"]
[null,null,null,null,null,null,null,null,null,null,null,null,null,null,null,null,null,null,null,null,null,null,null,null,null,null,null,null,null,null,null,null,null,null,null,null,null,null,null,null,null,null,null,null,null,null,null,null,null,null,null,null,null,null,null,null,null,null,null,null,null,null,null,null,null,null,null,null,null,null,null,null,null,null,null,null,null,null,null,null,null,null,null,null,null,null,null,null,null,null,null,null,null,null,null,null,null,null,null,null,null,null,null,null,null,null,null,null,null,null,null,null,null,null,null,null,null,null,"s1"]
[null,null,null,null,null,null,null,null,null,null,null,null,null,null,null,null,null,null,null,null,null,null,null,null,null,null,null,null,null,null,null,null,null,null,null,null,null,null,null,null,null,null,null,null,null,null,null,null,null,null,null,null,null,null,null,null,null,null,null,null,null,null,null,null,null,null,null,null,null,null,null,null,null,null,null,null,null,null,null,null,null,null,null,null,null,null,null,null,null,null,null,null,null,null,null,null,null,null,null,null,null,null,null,null,null,null,null,null,null,null,null,null,null,null,null,null,null,null,"s1"]
[null,null,null,null,null,null,null,null,null,null,null,null,null,null,null,null,null,null,null,null,null,null,null,null,null,null,null,null,null,null,null,null,null,null,null,null,null,null,null,null,null,null,null,null,null,null,null,null,null,null,null,null,null,null,null,null,null,null,null,null,null,null,null,null,null,null,null,null,null,null,null,null,null,null,null,null,null,null,null,null,null,null,null,null,null,null,null,null,null,null,null,null,null,null,null,null,null,null,null,null,null,null,null,null,null,null,null,null,null,null,null,null,null,null,null,null,null,null,"s1"]
[null,null,null,null,null,null,null,null,null,null,null,null,null,null,null,null,null,null,null,null,null,null,null,null,null,null,null,null,null,null,null,null,null,null,null,null,null,null,null,null,null,null,null,null,null,null,null,null,null,null,null,null,null,null,null,null,null,null,null,null,null,null,null,null,null,null,null,null,null,null,null,null,null,null,null,null,null,null,null,null,null,null,null,null,null,null,null,null,null,null,null,null,null,null,null,null,null,null,null,null,null,null,null,null,null,null,null,null,null,null,null,null,null,null,null,null,null,null,"s1"]
[null,null,null,null,null,null,null,null,null,null,null,null,null,null,null,null,null,null,null,null,null,null,null,null,null,null,null,null,null,null,null,null,null,null,null,null,null,null,null,null,null,null,null,null,null,null,null,null,null,null,null,null,null,null,null,null,null,null,null,null,null,null,null,null,null,null,null,null,null,null,null,null,null,null,null,null,null,null,null,null,null,null,null,null,null,null,null,null,null,null,null,null,null,null,null,null,null,null,null,null,null,null,null,null,null,null,null,null,null,null,null,null,null,null,null,null,null,null,"s1"]
[null,null,null,null,null,null,null,null,null,null,null,null,null,null,null,null,null,null,null,null,null,null,null,null,null,null,null,null,null,null,null,null,null,null,null,null,null,null,null,null,null,null,null,null,null,null,null,null,null,null,null,null,null,null,null,null,null,null,null,null,null,null,null,null,null,null,null,null,null,null,null,null,null,null,null,null,null,null,null,null,null,null,null,null,null,null,null,null,null,null,null,null,null,null,null,null,null,null,null,null,null,null,null,null,null,null,null,null,null,null,null,null,null,null,null,null,null,null,"s1"]
[null,null,null,null,null,null,null,null,null,null,null,null,null,null,null,null,null,null,null,null,null,null,null,null,null,null,null,null,null,null,null,null,null,null,null,null,null,null,null,null,null,null,null,null,null,null,null,null,null,null,null,null,null,null,null,null,null,null,null,null,null,null,null,null,null,null,null,null,null,null,null,null,null,null,null,null,null,null,null,null,null,null,null,null,null,null,null,null,null,null,null,null,null,null,null,null,null,null,null,null,null,null,null,null,null,null,null,null,null,null,null,null,null,null,null,null,null,null,"s1"]
[null,null,null,null,null,null,null,null,null,null,null,null,null,null,null,null,null,null,null,null,null,null,null,null,null,null,null,null,null,null,null,null,null,null,null,null,null,null,null,null,null,null,null,null,null,null,null,null,null,null,null,null,null,null,null,null,null,null,null,null,null,null,null,null,null,null,null,null,null,null,null,null,null,null,null,null,null,null,null,null,null,null,null,null,null,null,null,null,null,null,null,null,null,null,null,null,null,null,null,null,null,null,null,null,null,null,null,null,null,null,null,null,null,null,null,null,null,null,"s2"]
[null,null,null,null,null,null,null,null,null,null,null,null,null,null,null,null,null,null,null,null,null,null,null,null,null,null,null,null,null,null,null,null,null,null,null,null,null,null,null,null,null,null,null,null,null,null,null,null,null,null,null,null,null,null,null,null,null,null,null,null,null,null,null,null,null,null,null,null,null,null,null,null,null,null,null,null,null,null,null,null,null,null,null,null,null,null,null,null,null,null,null,null,null,null,null,null,null,null,null,null,null,null,null,null,null,null,null,null,null,null,null,null,null,null,null,null,null,null,"s2"]
[null,null,null,null,null,null,null,null,null,null,null,null,null,null,null,null,null,null,null,null,null,null,null,null,null,null,null,null,null,null,null,null,null,null,null,null,null,null,null,null,null,null,null,null,null,null,null,null,null,null,null,null,null,null,null,null,null,null,null,null,null,null,null,null,null,null,null,null,null,null,null,null,null,null,null,null,null,null,null,null,null,null,null,null,null,null,null,null,null,null,null,null,null,null,null,null,null,null,null,null,null,null,null,null,null,null,null,null,null,null,null,null,null,null,null,null,null,null,"s2"]
[null,null,null,null,null,null,null,null,null,null,null,null,null,null,null,null,null,null,null,null,null,null,null,null,null,null,null,null,null,null,null,null,null,null,null,null,null,null,null,null,null,null,null,null,null,null,null,null,null,null,null,null,null,null,null,null,null,null,null,null,null,null,null,null,null,null,null,null,null,null,null,null,null,null,null,null,null,null,null,null,null,null,null,null,null,null,null,null,null,null,null,null,null,null,null,null,null,null,null,null,null,null,null,null,null,null,null,null,null,null,null,null,null,null,null,null,null,null,"s2"]
[null,null,null,null,null,null,null,null,null,null,null,null,null,null,null,null,null,null,null,null,null,null,null,null,null,null,null,null,null,null,null,null,null,null,null,null,null,null,null,null,null,null,null,null,null,null,null,null,null,null,null,null,null,null,null,null,null,null,null,null,null,null,null,null,null,null,null,null,null,null,null,null,null,null,null,null,null,null,null,null,null,null,null,null,null,null,null,null,null,null,null,null,null,null,null,null,null,null,null,null,null,null,null,null,null,null,null,null,null,null,null,null,null,null,null,null,null,null,"s2"]
[null,null,null,null,null,null,null,null,null,null,null,null,null,null,null,null,null,null,null,null,null,null,null,null,null,null,null,null,null,null,null,null,null,null,null,null,null,null,null,null,null,null,null,null,null,null,null,null,null,null,null,null,null,null,null,null,null,null,null,null,null,null,null,null,null,null,null,null,null,null,null,null,null,null,null,null,null,null,null,null,null,null,null,null,null,null,null,null,null,null,null,null,null,null,null,null,null,null,null,null,null,null,null,null,null,null,null,null,null,null,null,null,null,null,null,null,null,null,"s2"]
[null,null,null,null,null,null,null,null,null,null,null,null,null,null,null,null,null,null,null,null,null,null,null,null,null,null,null,null,null,null,null,null,null,null,null,null,null,null,null,null,null,null,null,null,null,null,null,null,null,null,null,null,null,null,null,null,null,null,null,null,null,null,null,null,null,null,null,null,null,null,null,null,null,null,null,null,null,null,null,null,null,null,null,null,null,null,null,null,null,null,null,null,null,null,null,null,null,null,null,null,null,null,null,null,null,null,null,null,null,null,null,null,null,null,null,null,null,null,"s2"]
[null,null,null,null,null,null,null,null,null,null,null,null,null,null,null,null,null,null,null,null,null,null,null,null,null,null,null,null,null,null,null,null,null,null,null,null,null,null,null,null,null,null,null,null,null,null,null,null,null,null,null,null,null,null,null,null,null,null,null,null,null,null,null,null,null,null,null,null,null,null,null,null,null,null,null,null,null,null,null,null,null,null,null,null,null,null,null,null,null,null,null,null,null,null,null,null,null,null,null,null,null,null,null,null,null,null,null,null,null,null,null,null,null,null,null,null,null,null,"s2"]
[null,null,null,null,null,null,null,null,null,null,null,null,null,null,null,null,null,null,null,null,null,null,null,null,null,null,null,null,null,null,null,null,null,null,null,null,null,null,null,null,null,null,null,null,null,null,null,null,null,null,null,null,null,null,null,null,null,null,null,null,null,null,null,null,null,null,null,null,null,null,null,null,null,null,null,null,null,null,null,null,null,null,null,null,null,null,null,null,null,null,null,null,null,null,null,null,null,null,null,null,null,null,null,null,null,null,null,null,null,null,null,null,null,null,null,null,null,null,"s2"]
[null,null,null,null,null,null,null,null,null,null,null,null,null,null,null,null,null,null,null,null,null,null,null,null,null,null,null,null,null,null,null,null,null,null,null,null,null,null,null,null,null,null,null,null,null,null,null,null,null,null,null,null,null,null,null,null,null,null,null,null,null,null,null,null,null,null,null,null,null,null,null,null,null,null,null,null,null,null,null,null,null,null,null,null,null,null,null,null,null,null,null,null,null,null,null,null,null,null,null,null,null,null,null,null,null,null,null,null,null,null,null,null,null,null,null,null,null,null,"s2"]
[null,null,null,null,null,null,null,null,null,null,null,null,null,null,null,null,null,null,null,null,null,null,null,null,null,null,null,null,null,null,null,null,null,null,null,null,null,null,null,null,null,null,null,null,null,null,null,null,null,null,null,null,null,null,null,null,null,null,null,null,null,null,null,null,null,null,null,null,null,null,null,null,null,null,null,null,null,null,null,null,null,null,null,null,null,null,null,null,null,null,null,null,null,null,null,null,null,null,null,null,null,null,null,null,null,null,null,null,null,null,null,null,null,null,null,null,null,null,"s2"]
[null,null,null,null,null,null,null,null,null,null,null,null,null,null,null,null,null,null,null,null,null,null,null,null,null,null,null,null,null,null,null,null,null,null,null,null,null,null,null,null,null,null,null,null,null,null,null,null,null,null,null,null,null,null,null,null,null,null,null,null,null,null,null,null,null,null,null,null,null,null,null,null,null,null,null,null,null,null,null,null,null,null,null,null,null,null,null,null,null,null,null,null,null,null,null,null,null,null,null,null,null,null,null,null,null,null,null,null,null,null,null,null,null,null,null,null,null,null,"s2"]
[null,null,null,null,null,null,null,null,null,null,null,null,null,null,null,null,null,null,null,null,null,null,null,null,null,null,null,null,null,null,null,null,null,null,null,null,null,null,null,null,null,null,null,null,null,null,null,null,null,null,null,null,null,null,null,null,null,null,null,null,null,null,null,null,null,null,null,null,null,null,null,null,null,null,null,null,null,null,null,null,null,null,null,null,null,null,null,null,null,null,null,null,null,null,null,null,null,null,null,null,null,null,null,null,null,null,null,null,null,null,null,null,null,null,null,null,null,null,"s2"]
[null,null,null,null,null,null,null,null,null,null,null,null,null,null,null,null,null,null,null,null,null,null,null,null,null,null,null,null,null,null,null,null,null,null,null,null,null,null,null,null,null,null,null,null,null,null,null,null,null,null,null,null,null,null,null,null,null,null,null,null,null,null,null,null,null,null,null,null,null,null,null,null,null,null,null,null,null,null,null,null,null,null,null,null,null,null,null,null,null,null,null,null,null,null,null,null,null,null,null,null,null,null,null,null,null,null,null,null,null,null,null,null,null,null,null,null,null,null,"s2"]
[null,null,null,null,null,null,null,null,null,null,null,null,null,null,null,null,null,null,null,null,null,null,null,null,null,null,null,null,null,null,null,null,null,null,null,null,null,null,null,null,null,null,null,null,null,null,null,null,null,null,null,null,null,null,null,null,null,null,null,null,null,null,null,null,null,null,null,null,null,null,null,null,null,null,null,null,null,null,null,null,null,null,null,null,null,null,null,null,null,null,null,null,null,null,null,null,null,null,null,null,null,null,null,null,null,null,null,null,null,null,null,null,null,null,null,null,null,null,"s2"]
[null,null,null,null,null,null,null,null,null,null,null,null,null,null,null,null,null,null,null,null,null,null,null,null,null,null,null,null,null,null,null,null,null,null,null,null,null,null,null,null,null,null,null,null,null,null,null,null,null,null,null,null,null,null,null,null,null,null,null,null,null,null,null,null,null,null,null,null,null,null,null,null,null,null,null,null,null,null,null,null,null,null,null,null,null,null,null,null,null,null,null,null,null,null,null,null,null,null,null,null,null,null,null,null,null,null,null,null,null,null,null,null,null,null,null,null,null,null,"s2"]
[null,null,null,null,null,null,null,null,null,null,null,null,null,null,null,null,null,null,null,null,null,null,null,null,null,null,null,null,null,null,null,null,null,null,null,null,null,null,null,null,null,null,null,null,null,null,null,null,null,null,null,null,null,null,null,null,null,null,null,null,null,null,null,null,null,null,null,null,null,null,null,null,null,null,null,null,null,null,null,null,null,null,null,null,null,null,null,null,null,null,null,null,null,null,null,null,null,null,null,null,null,null,null,null,null,null,null,null,null,null,null,null,null,null,null,null,null,null,"s2"]
["□"]
["□"]
["□"]
["□"]
["□"]
[]
[null,null,null,null,null,null,null,null,null,null,null,null,null,null,null,null,null,null,null,null,{"$f":"設定!$B$14&\"学校\"","v":"学校"},"②",null,1,null,2,null,3,null,4]
[]
[null,{"$f":"\"第\" & 設定!$B$10 & \"回席書大会(\" & 設定!$B$7 & 設定!$B$8 & \")\"","v":"第65回席書大会(R1)"}]
[null,null,null,null,null,null,null,null,null,null,null,null,null,null,null,3,{"$f":"\"/\" & 設定!$B$36","v":"/0"}]
[]
[null,"学校番号",null,"学　　校　　名",null,null,null,null,null,null,null,null,"担 当",{"$f":"設定!$B$18","v":0}]
[null,{"$f":"設定!$B$16","v":0},null,{"$f":"設定!$B$14","v":0},null,null,null,null,null,null,"学校"]
[null,null,null,null,null,null,null,null,null,null,null,null,"電 話",{"$f":"設定!$B$21","v":0}]
[null,"実施日",null,{"$f":"設定!$B$20","v":"00:00:00"},null,null,"全児童生徒数",null,null,{"$f":"設定!$B$19 & \"人\"","v":"人"},null,null,"FAX",{"$f":"設定!$B$22","v":0}]
[]
[null,"Check","No","硬筆","学年","組","児童生徒氏名",null,null,null,null,null,"じどうせいとしめい",null,null,null,null,"双子","確認","入選","佳作","秀作","特選","推薦","特別"]
[]
[null,null,null,null,null,null,null,null,null,null,null,null,null,null,null,null,null,null,null,null,null,null,null,null,null,null,null,null,null,null,null,null,null,null,null,null,null,null,null,null,null,null,null,null,null,null,null,null,null,null,null,null,null,null,null,null,null,null,null,null,null,null,null,null,null,null,null,null,null,null,null,null,null,null,null,null,null,null,null,null,null,null,null,null,null,null,null,null,null,null,null,null,null,null,null,null,null,null,null,null,null,null,null,null,null,null,null,null,null,null,null,null,null,null,null,null,null,null,"s2"]
[null,null,null,null,null,null,null,null,null,null,null,null,null,null,null,null,null,null,null,null,null,null,null,null,null,null,null,null,null,null,null,null,null,null,null,null,null,null,null,null,null,null,null,null,null,null,null,null,null,null,null,null,null,null,null,null,null,null,null,null,null,null,null,null,null,null,null,null,null,null,null,null,null,null,null,null,null,null,null,null,null,null,null,null,null,null,null,null,null,null,null,null,null,null,null,null,null,null,null,null,null,null,null,null,null,null,null,null,null,null,null,null,null,null,null,null,null,null,"s3"]
[null,null,null,null,null,null,null,null,null,null,null,null,null,null,null,null,null,null,null,null,null,null,null,null,null,null,null,null,null,null,null,null,null,null,null,null,null,null,null,null,null,null,null,null,null,null,null,null,null,null,null,null,null,null,null,null,null,null,null,null,null,null,null,null,null,null,null,null,null,null,null,null,null,null,null,null,null,null,null,null,null,null,null,null,null,null,null,null,null,null,null,null,null,null,null,null,null,null,null,null,null,null,null,null,null,null,null,null,null,null,null,null,null,null,null,null,null,null,"s3"]
[null,null,null,null,null,null,null,null,null,null,null,null,null,null,null,null,null,null,null,null,null,null,null,null,null,null,null,null,null,null,null,null,null,null,null,null,null,null,null,null,null,null,null,null,null,null,null,null,null,null,null,null,null,null,null,null,null,null,null,null,null,null,null,null,null,null,null,null,null,null,null,null,null,null,null,null,null,null,null,null,null,null,null,null,null,null,null,null,null,null,null,null,null,null,null,null,null,null,null,null,null,null,null,null,null,null,null,null,null,null,null,null,null,null,null,null,null,null,"s3"]
[null,null,null,null,null,null,null,null,null,null,null,null,null,null,null,null,null,null,null,null,null,null,null,null,null,null,null,null,null,null,null,null,null,null,null,null,null,null,null,null,null,null,null,null,null,null,null,null,null,null,null,null,null,null,null,null,null,null,null,null,null,null,null,null,null,null,null,null,null,null,null,null,null,null,null,null,null,null,null,null,null,null,null,null,null,null,null,null,null,null,null,null,null,null,null,null,null,null,null,null,null,null,null,null,null,null,null,null,null,null,null,null,null,null,null,null,null,null,"s3"]
[null,null,null,null,null,null,null,null,null,null,null,null,null,null,null,null,null,null,null,null,null,null,null,null,null,null,null,null,null,null,null,null,null,null,null,null,null,null,null,null,null,null,null,null,null,null,null,null,null,null,null,null,null,null,null,null,null,null,null,null,null,null,null,null,null,null,null,null,null,null,null,null,null,null,null,null,null,null,null,null,null,null,null,null,null,null,null,null,null,null,null,null,null,null,null,null,null,null,null,null,null,null,null,null,null,null,null,null,null,null,null,null,null,null,null,null,null,null,"s3"]
[null,null,null,null,null,null,null,null,null,null,null,null,null,null,null,null,null,null,null,null,null,null,null,null,null,null,null,null,null,null,null,null,null,null,null,null,null,null,null,null,null,null,null,null,null,null,null,null,null,null,null,null,null,null,null,null,null,null,null,null,null,null,null,null,null,null,null,null,null,null,null,null,null,null,null,null,null,null,null,null,null,null,null,null,null,null,null,null,null,null,null,null,null,null,null,null,null,null,null,null,null,null,null,null,null,null,null,null,null,null,null,null,null,null,null,null,null,null,"s3"]
[null,null,null,null,null,null,null,null,null,null,null,null,null,null,null,null,null,null,null,null,null,null,null,null,null,null,null,null,null,null,null,null,null,null,null,null,null,null,null,null,null,null,null,null,null,null,null,null,null,null,null,null,null,null,null,null,null,null,null,null,null,null,null,null,null,null,null,null,null,null,null,null,null,null,null,null,null,null,null,null,null,null,null,null,null,null,null,null,null,null,null,null,null,null,null,null,null,null,null,null,null,null,null,null,null,null,null,null,null,null,null,null,null,null,null,null,null,null,"s3"]
[null,null,null,null,null,null,null,null,null,null,null,null,null,null,null,null,null,null,null,null,null,null,null,null,null,null,null,null,null,null,null,null,null,null,null,null,null,null,null,null,null,null,null,null,null,null,null,null,null,null,null,null,null,null,null,null,null,null,null,null,null,null,null,null,null,null,null,null,null,null,null,null,null,null,null,null,null,null,null,null,null,null,null,null,null,null,null,null,null,null,null,null,null,null,null,null,null,null,null,null,null,null,null,null,null,null,null,null,null,null,null,null,null,null,null,null,null,null,"s3"]
[null,null,null,null,null,null,null,null,null,null,null,null,null,null,null,null,null,null,null,null,null,null,null,null,null,null,null,null,null,null,null,null,null,null,null,null,null,null,null,null,null,null,null,null,null,null,null,null,null,null,null,null,null,null,null,null,null,null,null,null,null,null,null,null,null,null,null,null,null,null,null,null,null,null,null,null,null,null,null,null,null,null,null,null,null,null,null,null,null,null,null,null,null,null,null,null,null,null,null,null,null,null,null,null,null,null,null,null,null,null,null,null,null,null,null,null,null,null,"s3"]
[null,null,null,null,null,null,null,null,null,null,null,null,null,null,null,null,null,null,null,null,null,null,null,null,null,null,null,null,null,null,null,null,null,null,null,null,null,null,null,null,null,null,null,null,null,null,null,null,null,null,null,null,null,null,null,null,null,null,null,null,null,null,null,null,null,null,null,null,null,null,null,null,null,null,null,null,null,null,null,null,null,null,null,null,null,null,null,null,null,null,null,null,null,null,null,null,null,null,null,null,null,null,null,null,null,null,null,null,null,null,null,null,null,null,null,null,null,null,"s3"]
[null,null,null,null,null,null,null,null,null,null,null,null,null,null,null,null,null,null,null,null,null,null,null,null,null,null,null,null,null,null,null,null,null,null,null,null,null,null,null,null,null,null,null,null,null,null,null,null,null,null,null,null,null,null,null,null,null,null,null,null,null,null,null,null,null,null,null,null,null,null,null,null,null,null,null,null,null,null,null,null,null,null,null,null,null,null,null,null,null,null,null,null,null,null,null,null,null,null,null,null,null,null,null,null,null,null,null,null,null,null,null,null,null,null,null,null,null,null,"s3"]
[null,null,null,null,null,null,null,null,null,null,null,null,null,null,null,null,null,null,null,null,null,null,null,null,null,null,null,null,null,null,null,null,null,null,null,null,null,null,null,null,null,null,null,null,null,null,null,null,null,null,null,null,null,null,null,null,null,null,null,null,null,null,null,null,null,null,null,null,null,null,null,null,null,null,null,null,null,null,null,null,null,null,null,null,null,null,null,null,null,null,null,null,null,null,null,null,null,null,null,null,null,null,null,null,null,null,null,null,null,null,null,null,null,null,null,null,null,null,"s3"]
[null,null,null,null,null,null,null,null,null,null,null,null,null,null,null,null,null,null,null,null,null,null,null,null,null,null,null,null,null,null,null,null,null,null,null,null,null,null,null,null,null,null,null,null,null,null,null,null,null,null,null,null,null,null,null,null,null,null,null,null,null,null,null,null,null,null,null,null,null,null,null,null,null,null,null,null,null,null,null,null,null,null,null,null,null,null,null,null,null,null,null,null,null,null,null,null,null,null,null,null,null,null,null,null,null,null,null,null,null,null,null,null,null,null,null,null,null,null,"s3"]
[null,null,null,null,null,null,null,null,null,null,null,null,null,null,null,null,null,null,null,null,null,null,null,null,null,null,null,null,null,null,null,null,null,null,null,null,null,null,null,null,null,null,null,null,null,null,null,null,null,null,null,null,null,null,null,null,null,null,null,null,null,null,null,null,null,null,null,null,null,null,null,null,null,null,null,null,null,null,null,null,null,null,null,null,null,null,null,null,null,null,null,null,null,null,null,null,null,null,null,null,null,null,null,null,null,null,null,null,null,null,null,null,null,null,null,null,null,null,"s3"]
[null,null,null,null,null,null,null,null,null,null,null,null,null,null,null,null,null,null,null,null,null,null,null,null,null,null,null,null,null,null,null,null,null,null,null,null,null,null,null,null,null,null,null,null,null,null,null,null,null,null,null,null,null,null,null,null,null,null,null,null,null,null,null,null,null,null,null,null,null,null,null,null,null,null,null,null,null,null,null,null,null,null,null,null,null,null,null,null,null,null,null,null,null,null,null,null,null,null,null,null,null,null,null,null,null,null,null,null,null,null,null,null,null,null,null,null,null,null,"s3"]
[null,null,null,null,null,null,null,null,null,null,null,null,null,null,null,null,null,null,null,null,null,null,null,null,null,null,null,null,null,null,null,null,null,null,null,null,null,null,null,null,null,null,null,null,null,null,null,null,null,null,null,null,null,null,null,null,null,null,null,null,null,null,null,null,null,null,null,null,null,null,null,null,null,null,null,null,null,null,null,null,null,null,null,null,null,null,null,null,null,null,null,null,null,null,null,null,null,null,null,null,null,null,null,null,null,null,null,null,null,null,null,null,null,null,null,null,null,null,"s3"]
[null,null,null,null,null,null,null,null,null,null,null,null,null,null,null,null,null,null,null,null,null,null,null,null,null,null,null,null,null,null,null,null,null,null,null,null,null,null,null,null,null,null,null,null,null,null,null,null,null,null,null,null,null,null,null,null,null,null,null,null,null,null,null,null,null,null,null,null,null,null,null,null,null,null,null,null,null,null,null,null,null,null,null,null,null,null,null,null,null,null,null,null,null,null,null,null,null,null,null,null,null,null,null,null,null,null,null,null,null,null,null,null,null,null,null,null,null,null,"s3"]
[null,null,null,null,null,null,null,null,null,null,null,null,null,null,null,null,null,null,null,null,null,null,null,null,null,null,null,null,null,null,null,null,null,null,null,null,null,null,null,null,null,null,null,null,null,null,null,null,null,null,null,null,null,null,null,null,null,null,null,null,null,null,null,null,null,null,null,null,null,null,null,null,null,null,null,null,null,null,null,null,null,null,null,null,null,null,null,null,null,null,null,null,null,null,null,null,null,null,null,null,null,null,null,null,null,null,null,null,null,null,null,null,null,null,null,null,null,null,"s3"]
[null,null,null,null,null,null,null,null,null,null,null,null,null,null,null,null,null,null,null,null,null,null,null,null,null,null,null,null,null,null,null,null,null,null,null,null,null,null,null,null,null,null,null,null,null,null,null,null,null,null,null,null,null,null,null,null,null,null,null,null,null,null,null,null,null,null,null,null,null,null,null,null,null,null,null,null,null,null,null,null,null,null,null,null,null,null,null,null,null,null,null,null,null,null,null,null,null,null,null,null,null,null,null,null,null,null,null,null,null,null,null,null,null,null,null,null,null,null,"s3"]
[null,null,null,null,null,null,null,null,null,null,null,null,null,null,null,null,null,null,null,null,null,null,null,null,null,null,null,null,null,null,null,null,null,null,null,null,null,null,null,null,null,null,null,null,null,null,null,null,null,null,null,null,null,null,null,null,null,null,null,null,null,null,null,null,null,null,null,null,null,null,null,null,null,null,null,null,null,null,null,null,null,null,null,null,null,null,null,null,null,null,null,null,null,null,null,null,null,null,null,null,null,null,null,null,null,null,null,null,null,null,null,null,null,null,null,null,null,null,"s3"]
[null,null,null,null,null,null,null,null,null,null,null,null,null,null,null,null,null,null,null,null,null,null,null,null,null,null,null,null,null,null,null,null,null,null,null,null,null,null,null,null,null,null,null,null,null,null,null,null,null,null,null,null,null,null,null,null,null,null,null,null,null,null,null,null,null,null,null,null,null,null,null,null,null,null,null,null,null,null,null,null,null,null,null,null,null,null,null,null,null,null,null,null,null,null,null,null,null,null,null,null,null,null,null,null,null,null,null,null,null,null,null,null,null,null,null,null,null,null,"s3"]
[null,null,null,null,null,null,null,null,null,null,null,null,null,null,null,null,null,null,null,null,null,null,null,null,null,null,null,null,null,null,null,null,null,null,null,null,null,null,null,null,null,null,null,null,null,null,null,null,null,null,null,null,null,null,null,null,null,null,null,null,null,null,null,null,null,null,null,null,null,null,null,null,null,null,null,null,null,null,null,null,null,null,null,null,null,null,null,null,null,null,null,null,null,null,null,null,null,null,null,null,null,null,null,null,null,null,null,null,null,null,null,null,null,null,null,null,null,null,"s3"]
[null,null,null,null,null,null,null,null,null,null,null,null,null,null,null,null,null,null,null,null,null,null,null,null,null,null,null,null,null,null,null,null,null,null,null,null,null,null,null,null,null,null,null,null,null,null,null,null,null,null,null,null,null,null,null,null,null,null,null,null,null,null,null,null,null,null,null,null,null,null,null,null,null,null,null,null,null,null,null,null,null,null,null,null,null,null,null,null,null,null,null,null,null,null,null,null,null,null,null,null,null,null,null,null,null,null,null,null,null,null,null,null,null,null,null,null,null,null,"s3"]
[null,null,null,null,null,null,null,null,null,null,null,null,null,null,null,null,null,null,null,null,null,null,null,null,null,null,null,null,null,null,null,null,null,null,null,null,null,null,null,null,null,null,null,null,null,null,null,null,null,null,null,null,null,null,null,null,null,null,null,null,null,null,null,null,null,null,null,null,null,null,null,null,null,null,null,null,null,null,null,null,null,null,null,null,null,null,null,null,null,null,null,null,null,null,null,null,null,null,null,null,null,null,null,null,null,null,null,null,null,null,null,null,null,null,null,null,null,null,"s3"]
["□"]
["□"]
["□"]
["□"]
["□"]
[]
[null,null,null,null,null,null,null,null,null,null,null,null,null,null,null,null,null,null,null,null,{"$f":"設定!$B$14&\"学校\"","v":"学校"},"③",null,1,null,2,null,3,null,4]
[]
[null,{"$f":"\"第\" & 設定!$B$10 & \"回席書大会(\" & 設定!$B$7 & 設定!$B$8 & \")\"","v":"第65回席書大会(R1)"}]
[null,null,null,null,null,null,null,null,null,null,null,null,null,null,null,4,{"$f":"\"/\" & 設定!$B$36","v":"/0"}]
[]
[null,"学校番号",null,"学　　校　　名",null,null,null,null,null,null,null,null,"担 当",{"$f":"設定!$B$18","v":0}]
[null,{"$f":"設定!$B$16","v":0},null,{"$f":"設定!$B$14","v":0},null,null,null,null,null,null,"学校"]
[null,null,null,null,null,null,null,null,null,null,null,null,"電 話",{"$f":"設定!$B$21","v":0}]
[null,"実施日",null,{"$f":"設定!$B$20","v":"00:00:00"},null,null,"全児童生徒数",null,null,{"$f":"設定!$B$19 & \"人\"","v":"人"},null,null,"FAX",{"$f":"設定!$B$22","v":0}]
[]
[null,"Check","No","硬筆","学年","組","児童生徒氏名",null,null,null,null,null,"じどうせいとしめい",null,null,null,null,"双子","確認","入選","佳作","秀作","特選","推薦","特別"]
[]
[null,null,null,null,null,null,null,null,null,null,null,null,null,null,null,null,null,null,null,null,null,null,null,null,null,null,null,null,null,null,null,null,null,null,null,null,null,null,null,null,null,null,null,null,null,null,null,null,null,null,null,null,null,null,null,null,null,null,null,null,null,null,null,null,null,null,null,null,null,null,null,null,null,null,null,null,null,null,null,null,null,null,null,null,null,null,null,null,null,null,null,null,null,null,null,null,null,null,null,null,null,null,null,null,null,null,null,null,null,null,null,null,null,null,null,null,null,null,"s3"]
[null,null,null,null,null,null,null,null,null,null,null,null,null,null,null,null,null,null,null,null,null,null,null,null,null,null,null,null,null,null,null,null,null,null,null,null,null,null,null,null,null,null,null,null,null,null,null,null,null,null,null,null,null,null,null,null,null,null,null,null,null,null,null,null,null,null,null,null,null,null,null,null,null,null,null,null,null,null,null,null,null,null,null,null,null,null,null,null,null,null,null,null,null,null,null,null,null,null,null,null,null,null,null,null,null,null,null,null,null,null,null,null,null,null,null,null,null,null,"s3"]
[null,null,null,null,null,null,null,null,null,null,null,null,null,null,null,null,null,null,null,null,null,null,null,null,null,null,null,null,null,null,null,null,null,null,null,null,null,null,null,null,null,null,null,null,null,null,null,null,null,null,null,null,null,null,null,null,null,null,null,null,null,null,null,null,null,null,null,null,null,null,null,null,null,null,null,null,null,null,null,null,null,null,null,null,null,null,null,null,null,null,null,null,null,null,null,null,null,null,null,null,null,null,null,null,null,null,null,null,null,null,null,null,null,null,null,null,null,null,"s3"]
[null,null,null,null,null,null,null,null,null,null,null,null,null,null,null,null,null,null,null,null,null,null,null,null,null,null,null,null,null,null,null,null,null,null,null,null,null,null,null,null,null,null,null,null,null,null,null,null,null,null,null,null,null,null,null,null,null,null,null,null,null,null,null,null,null,null,null,null,null,null,null,null,null,null,null,null,null,null,null,null,null,null,null,null,null,null,null,null,null,null,null,null,null,null,null,null,null,null,null,null,null,null,null,null,null,null,null,null,null,null,null,null,null,null,null,null,null,null,"s3"]
[null,null,null,null,null,null,null,null,null,null,null,null,null,null,null,null,null,null,null,null,null,null,null,null,null,null,null,null,null,null,null,null,null,null,null,null,null,null,null,null,null,null,null,null,null,null,null,null,null,null,null,null,null,null,null,null,null,null,null,null,null,null,null,null,null,null,null,null,null,null,null,null,null,null,null,null,null,null,null,null,null,null,null,null,null,null,null,null,null,null,null,null,null,null,null,null,null,null,null,null,null,null,null,null,null,null,null,null,null,null,null,null,null,null,null,null,null,null,"s3"]
[null,null,null,null,null,null,null,null,null,null,null,null,null,null,null,null,null,null,null,null,null,null,null,null,null,null,null,null,null,null,null,null,null,null,null,null,null,null,null,null,null,null,null,null,null,null,null,null,null,null,null,null,null,null,null,null,null,null,null,null,null,null,null,null,null,null,null,null,null,null,null,null,null,null,null,null,null,null,null,null,null,null,null,null,null,null,null,null,null,null,null,null,null,null,null,null,null,null,null,null,null,null,null,null,null,null,null,null,null,null,null,null,null,null,null,null,null,null,"s3"]
[null,null,null,null,null,null,null,null,null,null,null,null,null,null,null,null,null,null,null,null,null,null,null,null,null,null,null,null,null,null,null,null,null,null,null,null,null,null,null,null,null,null,null,null,null,null,null,null,null,null,null,null,null,null,null,null,null,null,null,null,null,null,null,null,null,null,null,null,null,null,null,null,null,null,null,null,null,null,null,null,null,null,null,null,null,null,null,null,null,null,null,null,null,null,null,null,null,null,null,null,null,null,null,null,null,null,null,null,null,null,null,null,null,null,null,null,null,null,"s3"]
[null,null,null,null,null,null,null,null,null,null,null,null,null,null,null,null,null,null,null,null,null,null,null,null,null,null,null,null,null,null,null,null,null,null,null,null,null,null,null,null,null,null,null,null,null,null,null,null,null,null,null,null,null,null,null,null,null,null,null,null,null,null,null,null,null,null,null,null,null,null,null,null,null,null,null,null,null,null,null,null,null,null,null,null,null,null,null,null,null,null,null,null,null,null,null,null,null,null,null,null,null,null,null,null,null,null,null,null,null,null,null,null,null,null,null,null,null,null,"s3"]
[null,null,null,null,null,null,null,null,null,null,null,null,null,null,null,null,null,null,null,null,null,null,null,null,null,null,null,null,null,null,null,null,null,null,null,null,null,null,null,null,null,null,null,null,null,null,null,null,null,null,null,null,null,null,null,null,null,null,null,null,null,null,null,null,null,null,null,null,null,null,null,null,null,null,null,null,null,null,null,null,null,null,null,null,null,null,null,null,null,null,null,null,null,null,null,null,null,null,null,null,null,null,null,null,null,null,null,null,null,null,null,null,null,null,null,null,null,null,"s3"]
[null,null,null,null,null,null,null,null,null,null,null,null,null,null,null,null,null,null,null,null,null,null,null,null,null,null,null,null,null,null,null,null,null,null,null,null,null,null,null,null,null,null,null,null,null,null,null,null,null,null,null,null,null,null,null,null,null,null,null,null,null,null,null,null,null,null,null,null,null,null,null,null,null,null,null,null,null,null,null,null,null,null,null,null,null,null,null,null,null,null,null,null,null,null,null,null,null,null,null,null,null,null,null,null,null,null,null,null,null,null,null,null,null,null,null,null,null,null,"s3"]
[null,null,null,null,null,null,null,null,null,null,null,null,null,null,null,null,null,null,null,null,null,null,null,null,null,null,null,null,null,null,null,null,null,null,null,null,null,null,null,null,null,null,null,null,null,null,null,null,null,null,null,null,null,null,null,null,null,null,null,null,null,null,null,null,null,null,null,null,null,null,null,null,null,null,null,null,null,null,null,null,null,null,null,null,null,null,null,null,null,null,null,null,null,null,null,null,null,null,null,null,null,null,null,null,null,null,null,null,null,null,null,null,null,null,null,null,null,null,"s3"]
[null,null,null,null,null,null,null,null,null,null,null,null,null,null,null,null,null,null,null,null,null,null,null,null,null,null,null,null,null,null,null,null,null,null,null,null,null,null,null,null,null,null,null,null,null,null,null,null,null,null,null,null,null,null,null,null,null,null,null,null,null,null,null,null,null,null,null,null,null,null,null,null,null,null,null,null,null,null,null,null,null,null,null,null,null,null,null,null,null,null,null,null,null,null,null,null,null,null,null,null,null,null,null,null,null,null,null,null,null,null,null,null,null,null,null,null,null,null,"s3"]
[null,null,null,null,null,null,null,null,null,null,null,null,null,null,null,null,null,null,null,null,null,null,null,null,null,null,null,null,null,null,null,null,null,null,null,null,null,null,null,null,null,null,null,null,null,null,null,null,null,null,null,null,null,null,null,null,null,null,null,null,null,null,null,null,null,null,null,null,null,null,null,null,null,null,null,null,null,null,null,null,null,null,null,null,null,null,null,null,null,null,null,null,null,null,null,null,null,null,null,null,null,null,null,null,null,null,null,null,null,null,null,null,null,null,null,null,null,null,"s3"]
[null,null,null,null,null,null,null,null,null,null,null,null,null,null,null,null,null,null,null,null,null,null,null,null,null,null,null,null,null,null,null,null,null,null,null,null,null,null,null,null,null,null,null,null,null,null,null,null,null,null,null,null,null,null,null,null,null,null,null,null,null,null,null,null,null,null,null,null,null,null,null,null,null,null,null,null,null,null,null,null,null,null,null,null,null,null,null,null,null,null,null,null,null,null,null,null,null,null,null,null,null,null,null,null,null,null,null,null,null,null,null,null,null,null,null,null,null,null,"s4"]
[null,null,null,null,null,null,null,null,null,null,null,null,null,null,null,null,null,null,null,null,null,null,null,null,null,null,null,null,null,null,null,null,null,null,null,null,null,null,null,null,null,null,null,null,null,null,null,null,null,null,null,null,null,null,null,null,null,null,null,null,null,null,null,null,null,null,null,null,null,null,null,null,null,null,null,null,null,null,null,null,null,null,null,null,null,null,null,null,null,null,null,null,null,null,null,null,null,null,null,null,null,null,null,null,null,null,null,null,null,null,null,null,null,null,null,null,null,null,"s4"]
[null,null,null,null,null,null,null,null,null,null,null,null,null,null,null,null,null,null,null,null,null,null,null,null,null,null,null,null,null,null,null,null,null,null,null,null,null,null,null,null,null,null,null,null,null,null,null,null,null,null,null,null,null,null,null,null,null,null,null,null,null,null,null,null,null,null,null,null,null,null,null,null,null,null,null,null,null,null,null,null,null,null,null,null,null,null,null,null,null,null,null,null,null,null,null,null,null,null,null,null,null,null,null,null,null,null,null,null,null,null,null,null,null,null,null,null,null,null,"s4"]
[null,null,null,null,null,null,null,null,null,null,null,null,null,null,null,null,null,null,null,null,null,null,null,null,null,null,null,null,null,null,null,null,null,null,null,null,null,null,null,null,null,null,null,null,null,null,null,null,null,null,null,null,null,null,null,null,null,null,null,null,null,null,null,null,null,null,null,null,null,null,null,null,null,null,null,null,null,null,null,null,null,null,null,null,null,null,null,null,null,null,null,null,null,null,null,null,null,null,null,null,null,null,null,null,null,null,null,null,null,null,null,null,null,null,null,null,null,null,"s4"]
[null,null,null,null,null,null,null,null,null,null,null,null,null,null,null,null,null,null,null,null,null,null,null,null,null,null,null,null,null,null,null,null,null,null,null,null,null,null,null,null,null,null,null,null,null,null,null,null,null,null,null,null,null,null,null,null,null,null,null,null,null,null,null,null,null,null,null,null,null,null,null,null,null,null,null,null,null,null,null,null,null,null,null,null,null,null,null,null,null,null,null,null,null,null,null,null,null,null,null,null,null,null,null,null,null,null,null,null,null,null,null,null,null,null,null,null,null,null,"s4"]
[null,null,null,null,null,null,null,null,null,null,null,null,null,null,null,null,null,null,null,null,null,null,null,null,null,null,null,null,null,null,null,null,null,null,null,null,null,null,null,null,null,null,null,null,null,null,null,null,null,null,null,null,null,null,null,null,null,null,null,null,null,null,null,null,null,null,null,null,null,null,null,null,null,null,null,null,null,null,null,null,null,null,null,null,null,null,null,null,null,null,null,null,null,null,null,null,null,null,null,null,null,null,null,null,null,null,null,null,null,null,null,null,null,null,null,null,null,null,"s4"]
[null,null,null,null,null,null,null,null,null,null,null,null,null,null,null,null,null,null,null,null,null,null,null,null,null,null,null,null,null,null,null,null,null,null,null,null,null,null,null,null,null,null,null,null,null,null,null,null,null,null,null,null,null,null,null,null,null,null,null,null,null,null,null,null,null,null,null,null,null,null,null,null,null,null,null,null,null,null,null,null,null,null,null,null,null,null,null,null,null,null,null,null,null,null,null,null,null,null,null,null,null,null,null,null,null,null,null,null,null,null,null,null,null,null,null,null,null,null,"s4"]
[null,null,null,null,null,null,null,null,null,null,null,null,null,null,null,null,null,null,null,null,null,null,null,null,null,null,null,null,null,null,null,null,null,null,null,null,null,null,null,null,null,null,null,null,null,null,null,null,null,null,null,null,null,null,null,null,null,null,null,null,null,null,null,null,null,null,null,null,null,null,null,null,null,null,null,null,null,null,null,null,null,null,null,null,null,null,null,null,null,null,null,null,null,null,null,null,null,null,null,null,null,null,null,null,null,null,null,null,null,null,null,null,null,null,null,null,null,null,"s4"]
[null,null,null,null,null,null,null,null,null,null,null,null,null,null,null,null,null,null,null,null,null,null,null,null,null,null,null,null,null,null,null,null,null,null,null,null,null,null,null,null,null,null,null,null,null,null,null,null,null,null,null,null,null,null,null,null,null,null,null,null,null,null,null,null,null,null,null,null,null,null,null,null,null,null,null,null,null,null,null,null,null,null,null,null,null,null,null,null,null,null,null,null,null,null,null,null,null,null,null,null,null,null,null,null,null,null,null,null,null,null,null,null,null,null,null,null,null,null,"s4"]
[null,null,null,null,null,null,null,null,null,null,null,null,null,null,null,null,null,null,null,null,null,null,null,null,null,null,null,null,null,null,null,null,null,null,null,null,null,null,null,null,null,null,null,null,null,null,null,null,null,null,null,null,null,null,null,null,null,null,null,null,null,null,null,null,null,null,null,null,null,null,null,null,null,null,null,null,null,null,null,null,null,null,null,null,null,null,null,null,null,null,null,null,null,null,null,null,null,null,null,null,null,null,null,null,null,null,null,null,null,null,null,null,null,null,null,null,null,null,"s4"]
[null,null,null,null,null,null,null,null,null,null,null,null,null,null,null,null,null,null,null,null,null,null,null,null,null,null,null,null,null,null,null,null,null,null,null,null,null,null,null,null,null,null,null,null,null,null,null,null,null,null,null,null,null,null,null,null,null,null,null,null,null,null,null,null,null,null,null,null,null,null,null,null,null,null,null,null,null,null,null,null,null,null,null,null,null,null,null,null,null,null,null,null,null,null,null,null,null,null,null,null,null,null,null,null,null,null,null,null,null,null,null,null,null,null,null,null,null,null,"s4"]
[null,null,null,null,null,null,null,null,null,null,null,null,null,null,null,null,null,null,null,null,null,null,null,null,null,null,null,null,null,null,null,null,null,null,null,null,null,null,null,null,null,null,null,null,null,null,null,null,null,null,null,null,null,null,null,null,null,null,null,null,null,null,null,null,null,null,null,null,null,null,null,null,null,null,null,null,null,null,null,null,null,null,null,null,null,null,null,null,null,null,null,null,null,null,null,null,null,null,null,null,null,null,null,null,null,null,null,null,null,null,null,null,null,null,null,null,null,null,"s4"]
["□"]
["□"]
["□"]
["□"]
["□"]
[]
[null,null,null,null,null,null,null,null,null,null,null,null,null,null,null,null,null,null,null,null,{"$f":"設定!$B$14&\"学校\"","v":"学校"},"④",null,1,null,2,null,3,null,4]
[]
[null,{"$f":"\"第\" & 設定!$B$10 & \"回席書大会(\" & 設定!$B$7 & 設定!$B$8 & \")\"","v":"第65回席書大会(R1)"}]
[null,null,null,null,null,null,null,null,null,null,null,null,null,null,null,5,{"$f":"\"/\" & 設定!$B$36","v":"/0"}]
[]
[null,"学校番号",null,"学　　校　　名",null,null,null,null,null,null,null,null,"担 当",{"$f":"設定!$B$18","v":0}]
[null,{"$f":"設定!$B$16","v":0},null,{"$f":"設定!$B$14","v":0},null,null,null,null,null,null,"学校"]
[null,null,null,null,null,null,null,null,null,null,null,null,"電 話",{"$f":"設定!$B$21","v":0}]
[null,"実施日",null,{"$f":"設定!$B$20","v":"00:00:00"},null,null,"全児童生徒数",null,null,{"$f":"設定!$B$19 & \"人\"","v":"人"},null,null,"FAX",{"$f":"設定!$B$22","v":0}]
[]
[null,"Check","No","硬筆","学年","組","児童生徒氏名",null,null,null,null,null,"じどうせいとしめい",null,null,null,null,"双子","確認","入選","佳作","秀作","特選","推薦","特別"]
[]
[null,null,null,null,null,null,null,null,null,null,null,null,null,null,null,null,null,null,null,null,null,null,null,null,null,null,null,null,null,null,null,null,null,null,null,null,null,null,null,null,null,null,null,null,null,null,null,null,null,null,null,null,null,null,null,null,null,null,null,null,null,null,null,null,null,null,null,null,null,null,null,null,null,null,null,null,null,null,null,null,null,null,null,null,null,null,null,null,null,null,null,null,null,null,null,null,null,null,null,null,null,null,null,null,null,null,null,null,null,null,null,null,null,null,null,null,null,null,"s4"]
[null,null,null,null,null,null,null,null,null,null,null,null,null,null,null,null,null,null,null,null,null,null,null,null,null,null,null,null,null,null,null,null,null,null,null,null,null,null,null,null,null,null,null,null,null,null,null,null,null,null,null,null,null,null,null,null,null,null,null,null,null,null,null,null,null,null,null,null,null,null,null,null,null,null,null,null,null,null,null,null,null,null,null,null,null,null,null,null,null,null,null,null,null,null,null,null,null,null,null,null,null,null,null,null,null,null,null,null,null,null,null,null,null,null,null,null,null,null,"s4"]
[null,null,null,null,null,null,null,null,null,null,null,null,null,null,null,null,null,null,null,null,null,null,null,null,null,null,null,null,null,null,null,null,null,null,null,null,null,null,null,null,null,null,null,null,null,null,null,null,null,null,null,null,null,null,null,null,null,null,null,null,null,null,null,null,null,null,null,null,null,null,null,null,null,null,null,null,null,null,null,null,null,null,null,null,null,null,null,null,null,null,null,null,null,null,null,null,null,null,null,null,null,null,null,null,null,null,null,null,null,null,null,null,null,null,null,null,null,null,"s4"]
[null,null,null,null,null,null,null,null,null,null,null,null,null,null,null,null,null,null,null,null,null,null,null,null,null,null,null,null,null,null,null,null,null,null,null,null,null,null,null,null,null,null,null,null,null,null,null,null,null,null,null,null,null,null,null,null,null,null,null,null,null,null,null,null,null,null,null,null,null,null,null,null,null,null,null,null,null,null,null,null,null,null,null,null,null,null,null,null,null,null,null,null,null,null,null,null,null,null,null,null,null,null,null,null,null,null,null,null,null,null,null,null,null,null,null,null,null,null,"s4"]
[null,null,null,null,null,null,null,null,null,null,null,null,null,null,null,null,null,null,null,null,null,null,null,null,null,null,null,null,null,null,null,null,null,null,null,null,null,null,null,null,null,null,null,null,null,null,null,null,null,null,null,null,null,null,null,null,null,null,null,null,null,null,null,null,null,null,null,null,null,null,null,null,null,null,null,null,null,null,null,null,null,null,null,null,null,null,null,null,null,null,null,null,null,null,null,null,null,null,null,null,null,null,null,null,null,null,null,null,null,null,null,null,null,null,null,null,null,null,"s4"]
[null,null,null,null,null,null,null,null,null,null,null,null,null,null,null,null,null,null,null,null,null,null,null,null,null,null,null,null,null,null,null,null,null,null,null,null,null,null,null,null,null,null,null,null,null,null,null,null,null,null,null,null,null,null,null,null,null,null,null,null,null,null,null,null,null,null,null,null,null,null,null,null,null,null,null,null,null,null,null,null,null,null,null,null,null,null,null,null,null,null,null,null,null,null,null,null,null,null,null,null,null,null,null,null,null,null,null,null,null,null,null,null,null,null,null,null,null,null,"s4"]
[null,null,null,null,null,null,null,null,null,null,null,null,null,null,null,null,null,null,null,null,null,null,null,null,null,null,null,null,null,null,null,null,null,null,null,null,null,null,null,null,null,null,null,null,null,null,null,null,null,null,null,null,null,null,null,null,null,null,null,null,null,null,null,null,null,null,null,null,null,null,null,null,null,null,null,null,null,null,null,null,null,null,null,null,null,null,null,null,null,null,null,null,null,null,null,null,null,null,null,null,null,null,null,null,null,null,null,null,null,null,null,null,null,null,null,null,null,null,"s4"]
[null,null,null,null,null,null,null,null,null,null,null,null,null,null,null,null,null,null,null,null,null,null,null,null,null,null,null,null,null,null,null,null,null,null,null,null,null,null,null,null,null,null,null,null,null,null,null,null,null,null,null,null,null,null,null,null,null,null,null,null,null,null,null,null,null,null,null,null,null,null,null,null,null,null,null,null,null,null,null,null,null,null,null,null,null,null,null,null,null,null,null,null,null,null,null,null,null,null,null,null,null,null,null,null,null,null,null,null,null,null,null,null,null,null,null,null,null,null,"s4"]
[null,null,null,null,null,null,null,null,null,null,null,null,null,null,null,null,null,null,null,null,null,null,null,null,null,null,null,null,null,null,null,null,null,null,null,null,null,null,null,null,null,null,null,null,null,null,null,null,null,null,null,null,null,null,null,null,null,null,null,null,null,null,null,null,null,null,null,null,null,null,null,null,null,null,null,null,null,null,null,null,null,null,null,null,null,null,null,null,null,null,null,null,null,null,null,null,null,null,null,null,null,null,null,null,null,null,null,null,null,null,null,null,null,null,null,null,null,null,"s4"]
[null,null,null,null,null,null,null,null,null,null,null,null,null,null,null,null,null,null,null,null,null,null,null,null,null,null,null,null,null,null,null,null,null,null,null,null,null,null,null,null,null,null,null,null,null,null,null,null,null,null,null,null,null,null,null,null,null,null,null,null,null,null,null,null,null,null,null,null,null,null,null,null,null,null,null,null,null,null,null,null,null,null,null,null,null,null,null,null,null,null,null,null,null,null,null,null,null,null,null,null,null,null,null,null,null,null,null,null,null,null,null,null,null,null,null,null,null,null,"s4"]
[null,null,null,null,null,null,null,null,null,null,null,null,null,null,null,null,null,null,null,null,null,null,null,null,null,null,null,null,null,null,null,null,null,null,null,null,null,null,null,null,null,null,null,null,null,null,null,null,null,null,null,null,null,null,null,null,null,null,null,null,null,null,null,null,null,null,null,null,null,null,null,null,null,null,null,null,null,null,null,null,null,null,null,null,null,null,null,null,null,null,null,null,null,null,null,null,null,null,null,null,null,null,null,null,null,null,null,null,null,null,null,null,null,null,null,null,null,null,"s4"]
[null,null,null,null,null,null,null,null,null,null,null,null,null,null,null,null,null,null,null,null,null,null,null,null,null,null,null,null,null,null,null,null,null,null,null,null,null,null,null,null,null,null,null,null,null,null,null,null,null,null,null,null,null,null,null,null,null,null,null,null,null,null,null,null,null,null,null,null,null,null,null,null,null,null,null,null,null,null,null,null,null,null,null,null,null,null,null,null,null,null,null,null,null,null,null,null,null,null,null,null,null,null,null,null,null,null,null,null,null,null,null,null,null,null,null,null,null,null,"s4"]
[null,null,null,null,null,null,null,null,null,null,null,null,null,null,null,null,null,null,null,null,null,null,null,null,null,null,null,null,null,null,null,null,null,null,null,null,null,null,null,null,null,null,null,null,null,null,null,null,null,null,null,null,null,null,null,null,null,null,null,null,null,null,null,null,null,null,null,null,null,null,null,null,null,null,null,null,null,null,null,null,null,null,null,null,null,null,null,null,null,null,null,null,null,null,null,null,null,null,null,null,null,null,null,null,null,null,null,null,null,null,null,null,null,null,null,null,null,null,"s4"]
[null,null,null,null,null,null,null,null,null,null,null,null,null,null,null,null,null,null,null,null,null,null,null,null,null,null,null,null,null,null,null,null,null,null,null,null,null,null,null,null,null,null,null,null,null,null,null,null,null,null,null,null,null,null,null,null,null,null,null,null,null,null,null,null,null,null,null,null,null,null,null,null,null,null,null,null,null,null,null,null,null,null,null,null,null,null,null,null,null,null,null,null,null,null,null,null,null,null,null,null,null,null,null,null,null,null,null,null,null,null,null,null,null,null,null,null,null,null,"s4"]
[null,null,null,null,null,null,null,null,null,null,null,null,null,null,null,null,null,null,null,null,null,null,null,null,null,null,null,null,null,null,null,null,null,null,null,null,null,null,null,null,null,null,null,null,null,null,null,null,null,null,null,null,null,null,null,null,null,null,null,null,null,null,null,null,null,null,null,null,null,null,null,null,null,null,null,null,null,null,null,null,null,null,null,null,null,null,null,null,null,null,null,null,null,null,null,null,null,null,null,null,null,null,null,null,null,null,null,null,null,null,null,null,null,null,null,null,null,null,"s4"]
[null,null,null,null,null,null,null,null,null,null,null,null,null,null,null,null,null,null,null,null,null,null,null,null,null,null,null,null,null,null,null,null,null,null,null,null,null,null,null,null,null,null,null,null,null,null,null,null,null,null,null,null,null,null,null,null,null,null,null,null,null,null,null,null,null,null,null,null,null,null,null,null,null,null,null,null,null,null,null,null,null,null,null,null,null,null,null,null,null,null,null,null,null,null,null,null,null,null,null,null,null,null,null,null,null,null,null,null,null,null,null,null,null,null,null,null,null,null,"s4"]
[null,null,null,null,null,null,null,null,null,null,null,null,null,null,null,null,null,null,null,null,null,null,null,null,null,null,null,null,null,null,null,null,null,null,null,null,null,null,null,null,null,null,null,null,null,null,null,null,null,null,null,null,null,null,null,null,null,null,null,null,null,null,null,null,null,null,null,null,null,null,null,null,null,null,null,null,null,null,null,null,null,null,null,null,null,null,null,null,null,null,null,null,null,null,null,null,null,null,null,null,null,null,null,null,null,null,null,null,null,null,null,null,null,null,null,null,null,null,"s4"]
[null,null,null,null,null,null,null,null,null,null,null,null,null,null,null,null,null,null,null,null,null,null,null,null,null,null,null,null,null,null,null,null,null,null,null,null,null,null,null,null,null,null,null,null,null,null,null,null,null,null,null,null,null,null,null,null,null,null,null,null,null,null,null,null,null,null,null,null,null,null,null,null,null,null,null,null,null,null,null,null,null,null,null,null,null,null,null,null,null,null,null,null,null,null,null,null,null,null,null,null,null,null,null,null,null,null,null,null,null,null,null,null,null,null,null,null,null,null,"s4"]
[null,null,null,null,null,null,null,null,null,null,null,null,null,null,null,null,null,null,null,null,null,null,null,null,null,null,null,null,null,null,null,null,null,null,null,null,null,null,null,null,null,null,null,null,null,null,null,null,null,null,null,null,null,null,null,null,null,null,null,null,null,null,null,null,null,null,null,null,null,null,null,null,null,null,null,null,null,null,null,null,null,null,null,null,null,null,null,null,null,null,null,null,null,null,null,null,null,null,null,null,null,null,null,null,null,null,null,null,null,null,null,null,null,null,null,null,null,null,"s4"]
[null,null,null,null,null,null,null,null,null,null,null,null,null,null,null,null,null,null,null,null,null,null,null,null,null,null,null,null,null,null,null,null,null,null,null,null,null,null,null,null,null,null,null,null,null,null,null,null,null,null,null,null,null,null,null,null,null,null,null,null,null,null,null,null,null,null,null,null,null,null,null,null,null,null,null,null,null,null,null,null,null,null,null,null,null,null,null,null,null,null,null,null,null,null,null,null,null,null,null,null,null,null,null,null,null,null,null,null,null,null,null,null,null,null,null,null,null,null,"s4"]
[null,null,null,null,null,null,null,null,null,null,null,null,null,null,null,null,null,null,null,null,null,null,null,null,null,null,null,null,null,null,null,null,null,null,null,null,null,null,null,null,null,null,null,null,null,null,null,null,null,null,null,null,null,null,null,null,null,null,null,null,null,null,null,null,null,null,null,null,null,null,null,null,null,null,null,null,null,null,null,null,null,null,null,null,null,null,null,null,null,null,null,null,null,null,null,null,null,null,null,null,null,null,null,null,null,null,null,null,null,null,null,null,null,null,null,null,null,null,"s4"]
[null,null,null,null,null,null,null,null,null,null,null,null,null,null,null,null,null,null,null,null,null,null,null,null,null,null,null,null,null,null,null,null,null,null,null,null,null,null,null,null,null,null,null,null,null,null,null,null,null,null,null,null,null,null,null,null,null,null,null,null,null,null,null,null,null,null,null,null,null,null,null,null,null,null,null,null,null,null,null,null,null,null,null,null,null,null,null,null,null,null,null,null,null,null,null,null,null,null,null,null,null,null,null,null,null,null,null,null,null,null,null,null,null,null,null,null,null,null,"s4"]
[null,null,null,null,null,null,null,null,null,null,null,null,null,null,null,null,null,null,null,null,null,null,null,null,null,null,null,null,null,null,null,null,null,null,null,null,null,null,null,null,null,null,null,null,null,null,null,null,null,null,null,null,null,null,null,null,null,null,null,null,null,null,null,null,null,null,null,null,null,null,null,null,null,null,null,null,null,null,null,null,null,null,null,null,null,null,null,null,null,null,null,null,null,null,null,null,null,null,null,null,null,null,null,null,null,null,null,null,null,null,null,null,null,null,null,null,null,null,"s4"]
[null,null,null,null,null,null,null,null,null,null,null,null,null,null,null,null,null,null,null,null,null,null,null,null,null,null,null,null,null,null,null,null,null,null,null,null,null,null,null,null,null,null,null,null,null,null,null,null,null,null,null,null,null,null,null,null,null,null,null,null,null,null,null,null,null,null,null,null,null,null,null,null,null,null,null,null,null,null,null,null,null,null,null,null,null,null,null,null,null,null,null,null,null,null,null,null,null,null,null,null,null,null,null,null,null,null,null,null,null,null,null,null,null,null,null,null,null,null,"s4"]
[null,null,null,null,null,null,null,null,null,null,null,null,null,null,null,null,null,null,null,null,null,null,null,null,null,null,null,null,null,null,null,null,null,null,null,null,null,null,null,null,null,null,null,null,null,null,null,null,null,null,null,null,null,null,null,null,null,null,null,null,null,null,null,null,null,null,null,null,null,null,null,null,null,null,null,null,null,null,null,null,null,null,null,null,null,null,null,null,null,null,null,null,null,null,null,null,null,null,null,null,null,null,null,null,null,null,null,null,null,null,null,null,null,null,null,null,null,null,"s5"]
[]
[]
[]
[]
[]
[]
[null,null,null,null,null,null,null,null,null,null,null,null,null,null,null,null,null,null,null,null,{"$f":"設定!$B$14&\"学校\"","v":"学校"},"⑤",null,1,null,2,null,3,null,4]
[]
[null,{"$f":"\"第\" & 設定!$B$10 & \"回席書大会(\" & 設定!$B$7 & 設定!$B$8 & \")\"","v":"第65回席書大会(R1)"}]
[null,null,null,null,null,null,null,null,null,null,null,null,null,null,null,6,{"$f":"\"/\" & 設定!$B$36","v":"/0"}]
[]
[null,"学校番号",null,"学　　校　　名",null,null,null,null,null,null,null,null,"担 当",{"$f":"設定!$B$18","v":0}]
[null,{"$f":"設定!$B$16","v":0},null,{"$f":"設定!$B$14","v":0},null,null,null,null,null,null,"学校"]
[null,null,null,null,null,null,null,null,null,null,null,null,"電 話",{"$f":"設定!$B$21","v":0}]
[null,"実施日",null,{"$f":"設定!$B$20","v":"00:00:00"},null,null,"全児童生徒数",null,null,{"$f":"設定!$B$19 & \"人\"","v":"人"},null,null,"FAX",{"$f":"設定!$B$22","v":0}]
[]
[null,"Check","No","硬筆","学年","組","児童生徒氏名",null,null,null,null,null,"じどうせいとしめい",null,null,null,null,"双子","確認","入選","佳作","秀作","特選","推薦","特別"]
[]
[null,null,null,null,null,null,null,null,null,null,null,null,null,null,null,null,null,null,null,null,null,null,null,null,null,null,null,null,null,null,null,null,null,null,null,null,null,null,null,null,null,null,null,null,null,null,null,null,null,null,null,null,null,null,null,null,null,null,null,null,null,null,null,null,null,null,null,null,null,null,null,null,null,null,null,null,null,null,null,null,null,null,null,null,null,null,null,null,null,null,null,null,null,null,null,null,null,null,null,null,null,null,null,null,null,null,null,null,null,null,null,null,null,null,null,null,null,null,"s5"]
[null,null,null,null,null,null,null,null,null,null,null,null,null,null,null,null,null,null,null,null,null,null,null,null,null,null,null,null,null,null,null,null,null,null,null,null,null,null,null,null,null,null,null,null,null,null,null,null,null,null,null,null,null,null,null,null,null,null,null,null,null,null,null,null,null,null,null,null,null,null,null,null,null,null,null,null,null,null,null,null,null,null,null,null,null,null,null,null,null,null,null,null,null,null,null,null,null,null,null,null,null,null,null,null,null,null,null,null,null,null,null,null,null,null,null,null,null,null,"s5"]
[null,null,null,null,null,null,null,null,null,null,null,null,null,null,null,null,null,null,null,null,null,null,null,null,null,null,null,null,null,null,null,null,null,null,null,null,null,null,null,null,null,null,null,null,null,null,null,null,null,null,null,null,null,null,null,null,null,null,null,null,null,null,null,null,null,null,null,null,null,null,null,null,null,null,null,null,null,null,null,null,null,null,null,null,null,null,null,null,null,null,null,null,null,null,null,null,null,null,null,null,null,null,null,null,null,null,null,null,null,null,null,null,null,null,null,null,null,null,"s5"]
[null,null,null,null,null,null,null,null,null,null,null,null,null,null,null,null,null,null,null,null,null,null,null,null,null,null,null,null,null,null,null,null,null,null,null,null,null,null,null,null,null,null,null,null,null,null,null,null,null,null,null,null,null,null,null,null,null,null,null,null,null,null,null,null,null,null,null,null,null,null,null,null,null,null,null,null,null,null,null,null,null,null,null,null,null,null,null,null,null,null,null,null,null,null,null,null,null,null,null,null,null,null,null,null,null,null,null,null,null,null,null,null,null,null,null,null,null,null,"s5"]
[null,null,null,null,null,null,null,null,null,null,null,null,null,null,null,null,null,null,null,null,null,null,null,null,null,null,null,null,null,null,null,null,null,null,null,null,null,null,null,null,null,null,null,null,null,null,null,null,null,null,null,null,null,null,null,null,null,null,null,null,null,null,null,null,null,null,null,null,null,null,null,null,null,null,null,null,null,null,null,null,null,null,null,null,null,null,null,null,null,null,null,null,null,null,null,null,null,null,null,null,null,null,null,null,null,null,null,null,null,null,null,null,null,null,null,null,null,null,"s5"]
[null,null,null,null,null,null,null,null,null,null,null,null,null,null,null,null,null,null,null,null,null,null,null,null,null,null,null,null,null,null,null,null,null,null,null,null,null,null,null,null,null,null,null,null,null,null,null,null,null,null,null,null,null,null,null,null,null,null,null,null,null,null,null,null,null,null,null,null,null,null,null,null,null,null,null,null,null,null,null,null,null,null,null,null,null,null,null,null,null,null,null,null,null,null,null,null,null,null,null,null,null,null,null,null,null,null,null,null,null,null,null,null,null,null,null,null,null,null,"s5"]
[null,null,null,null,null,null,null,null,null,null,null,null,null,null,null,null,null,null,null,null,null,null,null,null,null,null,null,null,null,null,null,null,null,null,null,null,null,null,null,null,null,null,null,null,null,null,null,null,null,null,null,null,null,null,null,null,null,null,null,null,null,null,null,null,null,null,null,null,null,null,null,null,null,null,null,null,null,null,null,null,null,null,null,null,null,null,null,null,null,null,null,null,null,null,null,null,null,null,null,null,null,null,null,null,null,null,null,null,null,null,null,null,null,null,null,null,null,null,"s5"]
[null,null,null,null,null,null,null,null,null,null,null,null,null,null,null,null,null,null,null,null,null,null,null,null,null,null,null,null,null,null,null,null,null,null,null,null,null,null,null,null,null,null,null,null,null,null,null,null,null,null,null,null,null,null,null,null,null,null,null,null,null,null,null,null,null,null,null,null,null,null,null,null,null,null,null,null,null,null,null,null,null,null,null,null,null,null,null,null,null,null,null,null,null,null,null,null,null,null,null,null,null,null,null,null,null,null,null,null,null,null,null,null,null,null,null,null,null,null,"s5"]
[null,null,null,null,null,null,null,null,null,null,null,null,null,null,null,null,null,null,null,null,null,null,null,null,null,null,null,null,null,null,null,null,null,null,null,null,null,null,null,null,null,null,null,null,null,null,null,null,null,null,null,null,null,null,null,null,null,null,null,null,null,null,null,null,null,null,null,null,null,null,null,null,null,null,null,null,null,null,null,null,null,null,null,null,null,null,null,null,null,null,null,null,null,null,null,null,null,null,null,null,null,null,null,null,null,null,null,null,null,null,null,null,null,null,null,null,null,null,"s5"]
[null,null,null,null,null,null,null,null,null,null,null,null,null,null,null,null,null,null,null,null,null,null,null,null,null,null,null,null,null,null,null,null,null,null,null,null,null,null,null,null,null,null,null,null,null,null,null,null,null,null,null,null,null,null,null,null,null,null,null,null,null,null,null,null,null,null,null,null,null,null,null,null,null,null,null,null,null,null,null,null,null,null,null,null,null,null,null,null,null,null,null,null,null,null,null,null,null,null,null,null,null,null,null,null,null,null,null,null,null,null,null,null,null,null,null,null,null,null,"s5"]
[null,null,null,null,null,null,null,null,null,null,null,null,null,null,null,null,null,null,null,null,null,null,null,null,null,null,null,null,null,null,null,null,null,null,null,null,null,null,null,null,null,null,null,null,null,null,null,null,null,null,null,null,null,null,null,null,null,null,null,null,null,null,null,null,null,null,null,null,null,null,null,null,null,null,null,null,null,null,null,null,null,null,null,null,null,null,null,null,null,null,null,null,null,null,null,null,null,null,null,null,null,null,null,null,null,null,null,null,null,null,null,null,null,null,null,null,null,null,"s5"]
[null,null,null,null,null,null,null,null,null,null,null,null,null,null,null,null,null,null,null,null,null,null,null,null,null,null,null,null,null,null,null,null,null,null,null,null,null,null,null,null,null,null,null,null,null,null,null,null,null,null,null,null,null,null,null,null,null,null,null,null,null,null,null,null,null,null,null,null,null,null,null,null,null,null,null,null,null,null,null,null,null,null,null,null,null,null,null,null,null,null,null,null,null,null,null,null,null,null,null,null,null,null,null,null,null,null,null,null,null,null,null,null,null,null,null,null,null,null,"s5"]
[null,null,null,null,null,null,null,null,null,null,null,null,null,null,null,null,null,null,null,null,null,null,null,null,null,null,null,null,null,null,null,null,null,null,null,null,null,null,null,null,null,null,null,null,null,null,null,null,null,null,null,null,null,null,null,null,null,null,null,null,null,null,null,null,null,null,null,null,null,null,null,null,null,null,null,null,null,null,null,null,null,null,null,null,null,null,null,null,null,null,null,null,null,null,null,null,null,null,null,null,null,null,null,null,null,null,null,null,null,null,null,null,null,null,null,null,null,null,"s5"]
[null,null,null,null,null,null,null,null,null,null,null,null,null,null,null,null,null,null,null,null,null,null,null,null,null,null,null,null,null,null,null,null,null,null,null,null,null,null,null,null,null,null,null,null,null,null,null,null,null,null,null,null,null,null,null,null,null,null,null,null,null,null,null,null,null,null,null,null,null,null,null,null,null,null,null,null,null,null,null,null,null,null,null,null,null,null,null,null,null,null,null,null,null,null,null,null,null,null,null,null,null,null,null,null,null,null,null,null,null,null,null,null,null,null,null,null,null,null,"s5"]
[null,null,null,null,null,null,null,null,null,null,null,null,null,null,null,null,null,null,null,null,null,null,null,null,null,null,null,null,null,null,null,null,null,null,null,null,null,null,null,null,null,null,null,null,null,null,null,null,null,null,null,null,null,null,null,null,null,null,null,null,null,null,null,null,null,null,null,null,null,null,null,null,null,null,null,null,null,null,null,null,null,null,null,null,null,null,null,null,null,null,null,null,null,null,null,null,null,null,null,null,null,null,null,null,null,null,null,null,null,null,null,null,null,null,null,null,null,null,"s5"]
[null,null,null,null,null,null,null,null,null,null,null,null,null,null,null,null,null,null,null,null,null,null,null,null,null,null,null,null,null,null,null,null,null,null,null,null,null,null,null,null,null,null,null,null,null,null,null,null,null,null,null,null,null,null,null,null,null,null,null,null,null,null,null,null,null,null,null,null,null,null,null,null,null,null,null,null,null,null,null,null,null,null,null,null,null,null,null,null,null,null,null,null,null,null,null,null,null,null,null,null,null,null,null,null,null,null,null,null,null,null,null,null,null,null,null,null,null,null,"s5"]
[null,null,null,null,null,null,null,null,null,null,null,null,null,null,null,null,null,null,null,null,null,null,null,null,null,null,null,null,null,null,null,null,null,null,null,null,null,null,null,null,null,null,null,null,null,null,null,null,null,null,null,null,null,null,null,null,null,null,null,null,null,null,null,null,null,null,null,null,null,null,null,null,null,null,null,null,null,null,null,null,null,null,null,null,null,null,null,null,null,null,null,null,null,null,null,null,null,null,null,null,null,null,null,null,null,null,null,null,null,null,null,null,null,null,null,null,null,null,"s5"]
[null,null,null,null,null,null,null,null,null,null,null,null,null,null,null,null,null,null,null,null,null,null,null,null,null,null,null,null,null,null,null,null,null,null,null,null,null,null,null,null,null,null,null,null,null,null,null,null,null,null,null,null,null,null,null,null,null,null,null,null,null,null,null,null,null,null,null,null,null,null,null,null,null,null,null,null,null,null,null,null,null,null,null,null,null,null,null,null,null,null,null,null,null,null,null,null,null,null,null,null,null,null,null,null,null,null,null,null,null,null,null,null,null,null,null,null,null,null,"s5"]
[null,null,null,null,null,null,null,null,null,null,null,null,null,null,null,null,null,null,null,null,null,null,null,null,null,null,null,null,null,null,null,null,null,null,null,null,null,null,null,null,null,null,null,null,null,null,null,null,null,null,null,null,null,null,null,null,null,null,null,null,null,null,null,null,null,null,null,null,null,null,null,null,null,null,null,null,null,null,null,null,null,null,null,null,null,null,null,null,null,null,null,null,null,null,null,null,null,null,null,null,null,null,null,null,null,null,null,null,null,null,null,null,null,null,null,null,null,null,"s5"]
[null,null,null,null,null,null,null,null,null,null,null,null,null,null,null,null,null,null,null,null,null,null,null,null,null,null,null,null,null,null,null,null,null,null,null,null,null,null,null,null,null,null,null,null,null,null,null,null,null,null,null,null,null,null,null,null,null,null,null,null,null,null,null,null,null,null,null,null,null,null,null,null,null,null,null,null,null,null,null,null,null,null,null,null,null,null,null,null,null,null,null,null,null,null,null,null,null,null,null,null,null,null,null,null,null,null,null,null,null,null,null,null,null,null,null,null,null,null,"s5"]
[null,null,null,null,null,null,null,null,null,null,null,null,null,null,null,null,null,null,null,null,null,null,null,null,null,null,null,null,null,null,null,null,null,null,null,null,null,null,null,null,null,null,null,null,null,null,null,null,null,null,null,null,null,null,null,null,null,null,null,null,null,null,null,null,null,null,null,null,null,null,null,null,null,null,null,null,null,null,null,null,null,null,null,null,null,null,null,null,null,null,null,null,null,null,null,null,null,null,null,null,null,null,null,null,null,null,null,null,null,null,null,null,null,null,null,null,null,null,"s5"]
[null,null,null,null,null,null,null,null,null,null,null,null,null,null,null,null,null,null,null,null,null,null,null,null,null,null,null,null,null,null,null,null,null,null,null,null,null,null,null,null,null,null,null,null,null,null,null,null,null,null,null,null,null,null,null,null,null,null,null,null,null,null,null,null,null,null,null,null,null,null,null,null,null,null,null,null,null,null,null,null,null,null,null,null,null,null,null,null,null,null,null,null,null,null,null,null,null,null,null,null,null,null,null,null,null,null,null,null,null,null,null,null,null,null,null,null,null,null,"s5"]
[null,null,null,null,null,null,null,null,null,null,null,null,null,null,null,null,null,null,null,null,null,null,null,null,null,null,null,null,null,null,null,null,null,null,null,null,null,null,null,null,null,null,null,null,null,null,null,null,null,null,null,null,null,null,null,null,null,null,null,null,null,null,null,null,null,null,null,null,null,null,null,null,null,null,null,null,null,null,null,null,null,null,null,null,null,null,null,null,null,null,null,null,null,null,null,null,null,null,null,null,null,null,null,null,null,null,null,null,null,null,null,null,null,null,null,null,null,null,"s5"]
[null,null,null,null,null,null,null,null,null,null,null,null,null,null,null,null,null,null,null,null,null,null,null,null,null,null,null,null,null,null,null,null,null,null,null,null,null,null,null,null,null,null,null,null,null,null,null,null,null,null,null,null,null,null,null,null,null,null,null,null,null,null,null,null,null,null,null,null,null,null,null,null,null,null,null,null,null,null,null,null,null,null,null,null,null,null,null,null,null,null,null,null,null,null,null,null,null,null,null,null,null,null,null,null,null,null,null,null,null,null,null,null,null,null,null,null,null,null,"s5"]
[null,null,null,null,null,null,null,null,null,null,null,null,null,null,null,null,null,null,null,null,null,null,null,null,null,null,null,null,null,null,null,null,null,null,null,null,null,null,null,null,null,null,null,null,null,null,null,null,null,null,null,null,null,null,null,null,null,null,null,null,null,null,null,null,null,null,null,null,null,null,null,null,null,null,null,null,null,null,null,null,null,null,null,null,null,null,null,null,null,null,null,null,null,null,null,null,null,null,null,null,null,null,null,null,null,null,null,null,null,null,null,null,null,null,null,null,null,null,"s5"]
[]
[]
[]
[]
[]
[]
[null,null,null,null,null,null,null,null,null,null,null,null,null,null,null,null,null,null,null,null,{"$f":"設定!$B$14&\"学校\"","v":"学校"},"⑥",null,1,null,2,null,3,null,4]
[]
[null,{"$f":"\"第\" & 設定!$B$10 & \"回席書大会(\" & 設定!$B$7 & 設定!$B$8 & \")\"","v":"第65回席書大会(R1)"}]
[null,null,null,null,null,null,null,null,null,null,null,null,null,null,null,7,{"$f":"\"/\" & 設定!$B$36","v":"/0"}]
[]
[null,"学校番号",null,"学　　校　　名",null,null,null,null,null,null,null,null,"担 当",{"$f":"設定!$B$18","v":0}]
[null,{"$f":"設定!$B$16","v":0},null,{"$f":"設定!$B$14","v":0},null,null,null,null,null,null,"学校"]
[null,null,null,null,null,null,null,null,null,null,null,null,"電 話",{"$f":"設定!$B$21","v":0}]
[null,"実施日",null,{"$f":"設定!$B$20","v":"00:00:00"},null,null,"全児童生徒数",null,null,{"$f":"設定!$B$19 & \"人\"","v":"人"},null,null,"FAX",{"$f":"設定!$B$22","v":0}]
[]
[null,"Check","No","硬筆","学年","組","児童生徒氏名",null,null,null,null,null,"じどうせいとしめい",null,null,null,null,"双子","確認","入選","佳作","秀作","特選","推薦","特別"]
[]
[null,null,null,null,null,null,null,null,null,null,null,null,null,null,null,null,null,null,null,null,null,null,null,null,null,null,null,null,null,null,null,null,null,null,null,null,null,null,null,null,null,null,null,null,null,null,null,null,null,null,null,null,null,null,null,null,null,null,null,null,null,null,null,null,null,null,null,null,null,null,null,null,null,null,null,null,null,null,null,null,null,null,null,null,null,null,null,null,null,null,null,null,null,null,null,null,null,null,null,null,null,null,null,null,null,null,null,null,null,null,null,null,null,null,null,null,null,null,"s5"]
[null,null,null,null,null,null,null,null,null,null,null,null,null,null,null,null,null,null,null,null,null,null,null,null,null,null,null,null,null,null,null,null,null,null,null,null,null,null,null,null,null,null,null,null,null,null,null,null,null,null,null,null,null,null,null,null,null,null,null,null,null,null,null,null,null,null,null,null,null,null,null,null,null,null,null,null,null,null,null,null,null,null,null,null,null,null,null,null,null,null,null,null,null,null,null,null,null,null,null,null,null,null,null,null,null,null,null,null,null,null,null,null,null,null,null,null,null,null,"s5"]
[null,null,null,null,null,null,null,null,null,null,null,null,null,null,null,null,null,null,null,null,null,null,null,null,null,null,null,null,null,null,null,null,null,null,null,null,null,null,null,null,null,null,null,null,null,null,null,null,null,null,null,null,null,null,null,null,null,null,null,null,null,null,null,null,null,null,null,null,null,null,null,null,null,null,null,null,null,null,null,null,null,null,null,null,null,null,null,null,null,null,null,null,null,null,null,null,null,null,null,null,null,null,null,null,null,null,null,null,null,null,null,null,null,null,null,null,null,null,"s6"]
[null,null,null,null,null,null,null,null,null,null,null,null,null,null,null,null,null,null,null,null,null,null,null,null,null,null,null,null,null,null,null,null,null,null,null,null,null,null,null,null,null,null,null,null,null,null,null,null,null,null,null,null,null,null,null,null,null,null,null,null,null,null,null,null,null,null,null,null,null,null,null,null,null,null,null,null,null,null,null,null,null,null,null,null,null,null,null,null,null,null,null,null,null,null,null,null,null,null,null,null,null,null,null,null,null,null,null,null,null,null,null,null,null,null,null,null,null,null,"s6"]
[null,null,null,null,null,null,null,null,null,null,null,null,null,null,null,null,null,null,null,null,null,null,null,null,null,null,null,null,null,null,null,null,null,null,null,null,null,null,null,null,null,null,null,null,null,null,null,null,null,null,null,null,null,null,null,null,null,null,null,null,null,null,null,null,null,null,null,null,null,null,null,null,null,null,null,null,null,null,null,null,null,null,null,null,null,null,null,null,null,null,null,null,null,null,null,null,null,null,null,null,null,null,null,null,null,null,null,null,null,null,null,null,null,null,null,null,null,null,"s6"]
[null,null,null,null,null,null,null,null,null,null,null,null,null,null,null,null,null,null,null,null,null,null,null,null,null,null,null,null,null,null,null,null,null,null,null,null,null,null,null,null,null,null,null,null,null,null,null,null,null,null,null,null,null,null,null,null,null,null,null,null,null,null,null,null,null,null,null,null,null,null,null,null,null,null,null,null,null,null,null,null,null,null,null,null,null,null,null,null,null,null,null,null,null,null,null,null,null,null,null,null,null,null,null,null,null,null,null,null,null,null,null,null,null,null,null,null,null,null,"s6"]
[null,null,null,null,null,null,null,null,null,null,null,null,null,null,null,null,null,null,null,null,null,null,null,null,null,null,null,null,null,null,null,null,null,null,null,null,null,null,null,null,null,null,null,null,null,null,null,null,null,null,null,null,null,null,null,null,null,null,null,null,null,null,null,null,null,null,null,null,null,null,null,null,null,null,null,null,null,null,null,null,null,null,null,null,null,null,null,null,null,null,null,null,null,null,null,null,null,null,null,null,null,null,null,null,null,null,null,null,null,null,null,null,null,null,null,null,null,null,"s6"]
[null,null,null,null,null,null,null,null,null,null,null,null,null,null,null,null,null,null,null,null,null,null,null,null,null,null,null,null,null,null,null,null,null,null,null,null,null,null,null,null,null,null,null,null,null,null,null,null,null,null,null,null,null,null,null,null,null,null,null,null,null,null,null,null,null,null,null,null,null,null,null,null,null,null,null,null,null,null,null,null,null,null,null,null,null,null,null,null,null,null,null,null,null,null,null,null,null,null,null,null,null,null,null,null,null,null,null,null,null,null,null,null,null,null,null,null,null,null,"s6"]
[null,null,null,null,null,null,null,null,null,null,null,null,null,null,null,null,null,null,null,null,null,null,null,null,null,null,null,null,null,null,null,null,null,null,null,null,null,null,null,null,null,null,null,null,null,null,null,null,null,null,null,null,null,null,null,null,null,null,null,null,null,null,null,null,null,null,null,null,null,null,null,null,null,null,null,null,null,null,null,null,null,null,null,null,null,null,null,null,null,null,null,null,null,null,null,null,null,null,null,null,null,null,null,null,null,null,null,null,null,null,null,null,null,null,null,null,null,null,"s6"]
[null,null,null,null,null,null,null,null,null,null,null,null,null,null,null,null,null,null,null,null,null,null,null,null,null,null,null,null,null,null,null,null,null,null,null,null,null,null,null,null,null,null,null,null,null,null,null,null,null,null,null,null,null,null,null,null,null,null,null,null,null,null,null,null,null,null,null,null,null,null,null,null,null,null,null,null,null,null,null,null,null,null,null,null,null,null,null,null,null,null,null,null,null,null,null,null,null,null,null,null,null,null,null,null,null,null,null,null,null,null,null,null,null,null,null,null,null,null,"s6"]
[null,null,null,null,null,null,null,null,null,null,null,null,null,null,null,null,null,null,null,null,null,null,null,null,null,null,null,null,null,null,null,null,null,null,null,null,null,null,null,null,null,null,null,null,null,null,null,null,null,null,null,null,null,null,null,null,null,null,null,null,null,null,null,null,null,null,null,null,null,null,null,null,null,null,null,null,null,null,null,null,null,null,null,null,null,null,null,null,null,null,null,null,null,null,null,null,null,null,null,null,null,null,null,null,null,null,null,null,null,null,null,null,null,null,null,null,null,null,"s6"]
[null,null,null,null,null,null,null,null,null,null,null,null,null,null,null,null,null,null,null,null,null,null,null,null,null,null,null,null,null,null,null,null,null,null,null,null,null,null,null,null,null,null,null,null,null,null,null,null,null,null,null,null,null,null,null,null,null,null,null,null,null,null,null,null,null,null,null,null,null,null,null,null,null,null,null,null,null,null,null,null,null,null,null,null,null,null,null,null,null,null,null,null,null,null,null,null,null,null,null,null,null,null,null,null,null,null,null,null,null,null,null,null,null,null,null,null,null,null,"s6"]
[null,null,null,null,null,null,null,null,null,null,null,null,null,null,null,null,null,null,null,null,null,null,null,null,null,null,null,null,null,null,null,null,null,null,null,null,null,null,null,null,null,null,null,null,null,null,null,null,null,null,null,null,null,null,null,null,null,null,null,null,null,null,null,null,null,null,null,null,null,null,null,null,null,null,null,null,null,null,null,null,null,null,null,null,null,null,null,null,null,null,null,null,null,null,null,null,null,null,null,null,null,null,null,null,null,null,null,null,null,null,null,null,null,null,null,null,null,null,"s6"]
[null,null,null,null,null,null,null,null,null,null,null,null,null,null,null,null,null,null,null,null,null,null,null,null,null,null,null,null,null,null,null,null,null,null,null,null,null,null,null,null,null,null,null,null,null,null,null,null,null,null,null,null,null,null,null,null,null,null,null,null,null,null,null,null,null,null,null,null,null,null,null,null,null,null,null,null,null,null,null,null,null,null,null,null,null,null,null,null,null,null,null,null,null,null,null,null,null,null,null,null,null,null,null,null,null,null,null,null,null,null,null,null,null,null,null,null,null,null,"s6"]
[null,null,null,null,null,null,null,null,null,null,null,null,null,null,null,null,null,null,null,null,null,null,null,null,null,null,null,null,null,null,null,null,null,null,null,null,null,null,null,null,null,null,null,null,null,null,null,null,null,null,null,null,null,null,null,null,null,null,null,null,null,null,null,null,null,null,null,null,null,null,null,null,null,null,null,null,null,null,null,null,null,null,null,null,null,null,null,null,null,null,null,null,null,null,null,null,null,null,null,null,null,null,null,null,null,null,null,null,null,null,null,null,null,null,null,null,null,null,"s6"]
[null,null,null,null,null,null,null,null,null,null,null,null,null,null,null,null,null,null,null,null,null,null,null,null,null,null,null,null,null,null,null,null,null,null,null,null,null,null,null,null,null,null,null,null,null,null,null,null,null,null,null,null,null,null,null,null,null,null,null,null,null,null,null,null,null,null,null,null,null,null,null,null,null,null,null,null,null,null,null,null,null,null,null,null,null,null,null,null,null,null,null,null,null,null,null,null,null,null,null,null,null,null,null,null,null,null,null,null,null,null,null,null,null,null,null,null,null,null,"s6"]
[null,null,null,null,null,null,null,null,null,null,null,null,null,null,null,null,null,null,null,null,null,null,null,null,null,null,null,null,null,null,null,null,null,null,null,null,null,null,null,null,null,null,null,null,null,null,null,null,null,null,null,null,null,null,null,null,null,null,null,null,null,null,null,null,null,null,null,null,null,null,null,null,null,null,null,null,null,null,null,null,null,null,null,null,null,null,null,null,null,null,null,null,null,null,null,null,null,null,null,null,null,null,null,null,null,null,null,null,null,null,null,null,null,null,null,null,null,null,"s6"]
[null,null,null,null,null,null,null,null,null,null,null,null,null,null,null,null,null,null,null,null,null,null,null,null,null,null,null,null,null,null,null,null,null,null,null,null,null,null,null,null,null,null,null,null,null,null,null,null,null,null,null,null,null,null,null,null,null,null,null,null,null,null,null,null,null,null,null,null,null,null,null,null,null,null,null,null,null,null,null,null,null,null,null,null,null,null,null,null,null,null,null,null,null,null,null,null,null,null,null,null,null,null,null,null,null,null,null,null,null,null,null,null,null,null,null,null,null,null,"s6"]
[null,null,null,null,null,null,null,null,null,null,null,null,null,null,null,null,null,null,null,null,null,null,null,null,null,null,null,null,null,null,null,null,null,null,null,null,null,null,null,null,null,null,null,null,null,null,null,null,null,null,null,null,null,null,null,null,null,null,null,null,null,null,null,null,null,null,null,null,null,null,null,null,null,null,null,null,null,null,null,null,null,null,null,null,null,null,null,null,null,null,null,null,null,null,null,null,null,null,null,null,null,null,null,null,null,null,null,null,null,null,null,null,null,null,null,null,null,null,"s6"]
[null,null,null,null,null,null,null,null,null,null,null,null,null,null,null,null,null,null,null,null,null,null,null,null,null,null,null,null,null,null,null,null,null,null,null,null,null,null,null,null,null,null,null,null,null,null,null,null,null,null,null,null,null,null,null,null,null,null,null,null,null,null,null,null,null,null,null,null,null,null,null,null,null,null,null,null,null,null,null,null,null,null,null,null,null,null,null,null,null,null,null,null,null,null,null,null,null,null,null,null,null,null,null,null,null,null,null,null,null,null,null,null,null,null,null,null,null,null,"s6"]
[null,null,null,null,null,null,null,null,null,null,null,null,null,null,null,null,null,null,null,null,null,null,null,null,null,null,null,null,null,null,null,null,null,null,null,null,null,null,null,null,null,null,null,null,null,null,null,null,null,null,null,null,null,null,null,null,null,null,null,null,null,null,null,null,null,null,null,null,null,null,null,null,null,null,null,null,null,null,null,null,null,null,null,null,null,null,null,null,null,null,null,null,null,null,null,null,null,null,null,null,null,null,null,null,null,null,null,null,null,null,null,null,null,null,null,null,null,null,"s6"]
[]
[]
[]
[]
[]
[]
[]
[]
[]
[]
[null,null,null,null,null,null,null,null,null,null,null,null,null,null,null,null,null,null,null,null,{"$f":"設定!$B$14&\"学校\"","v":"学校"},"⑦",null,1,null,2,null,3,null,4]
[]
[null,{"$f":"\"第\" & 設定!$B$10 & \"回席書大会(\" & 設定!$B$7 & 設定!$B$8 & \")\"","v":"第65回席書大会(R1)"}]
[null,null,null,null,null,null,null,null,null,null,null,null,null,null,null,8,{"$f":"\"/\" & 設定!$B$36","v":"/0"}]
[]
[null,"学校番号",null,"学　　校　　名",null,null,null,null,null,null,null,null,"担 当",{"$f":"設定!$B$18","v":0}]
[null,{"$f":"設定!$B$16","v":0},null,{"$f":"設定!$B$14","v":0},null,null,null,null,null,null,"学校"]
[null,null,null,null,null,null,null,null,null,null,null,null,"電 話",{"$f":"設定!$B$21","v":0}]
[null,"実施日",null,{"$f":"設定!$B$20","v":"00:00:00"},null,null,"全児童生徒数",null,null,{"$f":"設定!$B$19 & \"人\"","v":"人"},null,null,"FAX",{"$f":"設定!$B$22","v":0}]
[]
[null,"Check","No","硬筆","学年","組","児童生徒氏名",null,null,null,null,null,"じどうせいとしめい",null,null,null,null,"双子","確認","入選","佳作","秀作","特選","推薦","特別"]
[]
[]
[]
[]
[]
[]
[]
[]
[]
[]
[]
[]
[]
[]
[]
[]
[]
[]
[]
[]
[]
[]
[]
[]
[]
[]
[]
[]
[]
[]
[]
[]
[null,null,null,null,null,null,null,null,null,null,null,null,null,null,null,null,null,null,null,null,{"$f":"設定!$B$14&\"学校\"","v":"学校"},"⑧",null,1,null,2,null,3,null,4]

{"sheet":"名簿入力","index":4,"n_rows":10,"n_cols":8,"rows_kept":10,"cut":false,"hidden":true,"merged":[[1,1,1,2],[1,3,1,5],[6,5,6,6],[6,3,6,4],[2,1,2,2],[2,3,2,5],[1,6,1,7],[2,6,2,7],[4,1,4,7]]}
[]
[null,"学校コード",null,"学　校　名",null,null,"オレンジ枠を ダブルクリック で機能発現"]
[null,{"$f":"設定!B16","v":0},null,{"$f":"設定!B14 & \"学校\"","v":"学校"},null,null,"部門別人数確認"]
[]
[null,"最初の行に「学年」を入力すると、その下段に新たな入力行が表示されます。以下同様。"]
[]
[null,"入力\n不可","ダブル\nクリック","水色枠に入力",null,"姓と名の間に空白（スペース）を１文字入れる",null,"ダブル\nクリック"]
[]
[]
[null,"No","硬筆","学年","組","児童生徒氏名","しめいよみ","双子"]

{"sheet":"人数入力","index":5,"n_rows":9,"n_cols":12,"rows_kept":9,"cut":false,"hidden":true,"merged":[[8,1,8,8],[1,1,1,11],[3,1,3,2],[3,3,3,8],[3,9,3,11],[6,1,6,2],[6,3,6,8],[6,9,6,11]]}
[1,2,3,4,5,6,7,8,9,10,11,12]
[null,"水色枠に学年ごとの参加人数を入力してください。参加者のいない学年は「０」のまま"]
[]
[null,"小学校【硬筆】",null,"小学校【毛筆】",null,null,null,null,null,"中学校"]
[null,"硬筆\n1年","硬筆\n2年","毛筆\n1年","毛筆\n2年","毛筆\n3年","毛筆\n4年","毛筆\n5年","毛筆\n6年","中学\n1年","中学\n2年","中学\n3年"]
[null,0,0,0,0,0,0,0,0,0,0,0]
[null,{"$f":"SUM(B6:C6)","v":0},null,{"$f":"SUM(D6:I6)","v":0},null,null,null,null,null,{"$f":"SUM(J6:L6)","v":0}]
[]
[null,"入力後ここを ダブルクリック （送付ファイル自動作成）",null,null,null,null,null,null,null,"合計",{"$f":"SUM(B7:L7)","v":0},"人"]

{"sheet":"CSV","index":6,"n_rows":2,"n_cols":17,"rows_kept":2,"cut":false,"hidden":true,"merged":[]}
[]
[1414,"新　琴似",555,"2019-09-09","111-1111","222-2222",1,2,2,1,0,0,1,2,0,0,0]

{"sheet":"コード","index":7,"n_rows":312,"n_cols":3,"rows_kept":312,"cut":false,"hidden":true,"merged":[]}
[1001,"有明小","ありあけ"]
[1002,"美しが丘小","うつくしがおか"]
[1003,"美しが丘緑小","うつくしがおかみどり"]
[1004,"北野小","きたの"]
[1005,"北野台小","きたのだい"]
[1006,"北野平小","きたのだいら"]
[1007,"清田小","きよた"]
[1008,"清田緑小","きよたみどり"]
[1009,"清田南小","きよたみなみ"]
[1010,"三里塚小","さんりづか"]
[1011,"真栄小","しんえい"]
[1012,"平岡小","ひらおか"]
[1013,"平岡公園小","ひらおかこうえん"]
[1014,"平岡中央小","ひらおかちゅうおう"]
[1015,"平岡南小","ひらおかみなみ"]
[1101,"丘珠小","おかだま"]
[1102,"開成小","かいせい"]
[1103,"北小","きた"]
[1104,"北園小","きたその"]
[1105,"栄小","さかえ"]
[1106,"栄北小","さかえきた"]
[1107,"栄西小","さかえにし"]
[1108,"栄東小","さかえひがし"]
[1109,"栄町小","さかえまち"]
[1110,"栄緑小","さかえみどり"]
[1111,"栄南小","さかえみなみ"]
[1112,"札苗小","さつなえ"]
[1113,"札苗北小","さつなえきた"]
[1114,"札苗緑小","さつなえみどり"]
[1115,"札幌小","さっぽろ"]
[1116,"東光小","とうこう"]
[1117,"苗穂小","なえぼ"]
[1118,"中沼小","なかぬま"]
[1119,"東苗穂小","ひがしなえぼ"]
[1120,"福移小","ふくい"]
[1121,"伏古小","ふしこ"]
[1122,"伏古北小","ふしこきた"]
[1123,"北光小","ほっこう"]
[1124,"本町小","ほんちょう"]
[1125,"美香保小","みかほ"]
[1126,"明園小","めいえん"]
[1127,"元町小","もとまち"]
[1128,"元町北小","もとまちきた"]
[1201,"琴似小","ことに"]
[1202,"琴似中央小","ことにちゅうおう"]
[1203,"西園小","せいえん"]
[1204,"手稲東小","ていねひがし"]
[1205,"手稲宮丘小","ていねみやのおか"]
[1206,"西小","にし"]
[1207,"西野小","にしの"]
[1208,"西野第二小","にしのだいに"]
[1209,"二十四軒小","にじゅうよんけん"]
[1210,"八軒小","はちけん"]
[1211,"八軒北小","はちけんきた"]
[1212,"八軒西小","はちけんにし"]
[1213,"発寒小","はっさむ"]
[1214,"発寒西小","はっさむにし"]
[1215,"発寒東小","はっさむひがし"]
[1216,"発寒南小","はっさむみなみ"]
[1217,"福井野小","ふくいの"]
[1218,"平和小","へいわ"]
[1219,"山の手小","やまのて"]
[1220,"山の手南小","やまのてみなみ"]
[1221,"山の手養護小","やまのてようご"]
[1301,"石山東小","いしやまひがし"]
[1302,"石山緑小","いしやまみどり"]
[1303,"北の沢小","きたのさわ"]
[1304,"駒岡小小","こまおか"]
[1305,"定山渓小","じょうざんけい"]
[1306,"澄川小","すみかわ"]
[1307,"澄川西小","すみかわにし"]
[1308,"澄川南小","すみかわみなみ"]
[1309,"常盤小","ときわ"]
[1310,"藤野小","ふじの"]
[1311,"藤の沢小小","ふじのさわ"]
[1312,"藤野南小","ふじのみなみ"]
[1313,"真駒内公園小","まこまないこうえん"]
[1314,"真駒内桜山小","まこまないさくらやま"]
[1315,"簾舞小","みすまい"]
[1316,"南小","みなみ"]
[1317,"南の沢小","みなみのさわ"]
[1318,"藻岩小","もいわ"]
[1319,"藻岩北小","もいわきた"]
[1320,"藻岩南小","もいわみなみ"]
[1401,"あいの里西小","あいのさとにし"]
[1402,"あいの里東小","あいのさとひがし"]
[1403,"北九条小","きたくじょう"]
[1404,"教育大附属小","きょういくだいふぞく"]
[1405,"鴻城小","こうじょう"]
[1406,"幌北小","こうほく"]
[1407,"光陽小","こうよう"]
[1408,"札幌聾小","さっぽろろう"]
[1409,"篠路小","しのろ"]
[1410,"篠路西小","しのろにし"]
[1411,"新川小","しんかわ"]
[1412,"新川中央小","しんかわちゅうおう"]
[1413,"新光小","しんこう"]
[1414,"新琴似小","しんことに"]
[1415,"新琴似北小","しんことにきた"]
[1416,"新琴似西小","しんことににし"]
[1417,"新琴似緑小","しんことにみどり"]
[1418,"新琴似南小","しんことにみなみ"]
[1419,"新陽小","しんよう"]
[1420,"太平小","たいへい"]
[1421,"太平南小","たいへいみなみ"]
[1422,"拓北小","たくほく"]
[1423,"屯田小","とんでん"]
[1424,"屯田北小","とんでんきた"]
[1425,"屯田西小","とんでんにし"]
[1426,"屯田南小","とんでんみなみ"]
[1427,"白楊小","はくよう"]
[1428,"茨戸小","ばらと"]
[1429,"北陽小","ほくよう"]
[1430,"百合が原小","ゆりがはら"]
[1431,"和光小","わこう"]
[1501,"東橋小","あずまばし"]
[1502,"大谷地小","おおやち"]
[1503,"上白石小","かみしろいし"]
[1504,"川北小","かわきた"]
[1505,"菊水小","きくすい"]
[1506,"北郷小","きたごう"]
[1507,"北白石小","きたしろいし"]
[1508,"幌東小","こうとう"]
[1509,"白石小","しろいし"]
[1510,"南郷小","なんごう"]
[1511,"西白石小","にししろいし"]
[1512,"東川下小","ひがしかわしも"]
[1513,"東札幌小","ひがしさっぽろ"]
[1514,"東白石小","ひがししろいし"]
[1515,"平和通小","へいわどおり"]
[1516,"北都小","ほくと"]
[1517,"本郷小","ほんごう"]
[1518,"本通小","ほんどおり"]
[1519,"南白石小","みなみしろいし"]
[1520,"米里小","よねさと"]
[1601,"旭小","あさひ"]
[1602,"あやめ野小","あやめの"]
[1603,"しらかば台小","しらかばだい"]
[1604,"月寒小","つきさむ"]
[1605,"月寒東小","つきさむひがし"]
[1606,"東園小","とうえん"]
[1607,"豊園小","とよぞの"]
[1608,"豊平小","とよひら"]
[1609,"中の島小","なかのしま"]
[1610,"西岡小","にしおか"]
[1611,"西岡北小","にしおかきた"]
[1612,"西岡南小","にしおかみなみ"]
[1613,"東山小","ひがしやま"]
[1614,"羊丘小","ひつじがおか"]
[1615,"平岸小","ひらぎし"]
[1616,"平岸高台小","ひらぎしたかだい"]
[1617,"平岸西小","ひらぎしにし"]
[1618,"福住小","ふくずみ"]
[1619,"美園小","みその"]
[1620,"みどり小","みどり"]
[1621,"南月寒小","みなみつきさむ"]
[1701,"大倉山小","おおくらやま"]
[1702,"幌西小","こうさい"]
[1703,"幌南小","こうなん"]
[1704,"三角山小","さんかくやま"]
[1705,"資生館小","しせいかん"]
[1706,"桑園小","そうえん"]
[1707,"中央小","ちゅうおう"]
[1708,"二条小","にじょう"]
[1709,"日新小","にっしん"]
[1710,"盤渓小","ばんけい"]
[1711,"伏見小","ふしみ"]
[1712,"円山小","まるやま"]
[1713,"緑丘小","みどりがおか"]
[1714,"宮の森小","みやのもり"]
[1715,"山鼻小","やまはな"]
[1716,"山鼻南小","やまはなみなみ"]
[1801,"稲積小","いなずみ"]
[1802,"稲穂小","いなほ"]
[1803,"新発寒小","しんはっさむ"]
[1804,"新陵小","しんりょう"]
[1805,"新陵東小","しんりょうひがし"]
[1806,"手稲北小","ていねきた"]
[1807,"手稲中央小","ていねちゅうおう"]
[1808,"手稲鉄北小","ていねてつほく"]
[1809,"手稲西小","ていねにし"]
[1810,"手稲山口小","ていねやまぐち"]
[1811,"手稲養護小","ていねようご"]
[1812,"富丘小","とみおか"]
[1813,"西宮の沢小","にしみやのさわ"]
[1814,"星置東小","ほしおきひがし"]
[1815,"前田小","まえだ"]
[1816,"前田北小","まえだきた"]
[1817,"前田中央小","まえだちゅうおう"]
[1901,"青葉小","あおば"]
[1902,"厚別北小","あつべつきた"]
[1903,"厚別通小","あつべつどおり"]
[1904,"厚別西小","あつべつにし"]
[1905,"厚別東小","あつべつひがし"]
[1906,"大谷地東小","おおやちひがし"]
[1907,"上野幌小","かみのっぽろ"]
[1908,"共栄小","きょうえい"]
[1909,"小野幌小","このっぽろ"]
[1910,"信濃小","しなの"]
[1911,"ノホロの丘小","のほろのおか"]
[1912,"ひばりが丘小","ひばりがおか"]
[1913,"もみじの丘小","もみじのおか"]
[1914,"もみじの森小","もみじのもり"]
[2001,"北野中","きたの"]
[2002,"北野台中","きたのだい"]
[2003,"清田中","きよた"]
[2004,"真栄中","しんえい"]
[2005,"平岡中","ひらおか"]
[2006,"平岡中央中","ひらおかちゅうおう"]
[2007,"平岡緑中","ひらおかみどり"]
[2008,"北嶺中","ほくれい"]
[2009,"札幌日大中","さっぽろにちだい"]
[2010,"立命館慶祥中","りつめいかんけいしょう"]
[2101,"大谷中","おおたに"]
[2102,"丘珠中","おかだま"]
[2103,"開成中","かいせい"]
[2104,"光星中","こうせい"]
[2105,"栄中","さかえ"]
[2106,"栄町中","さかえまち"]
[2107,"栄南中","さかえみなみ"]
[2108,"札苗中","さつなえ"]
[2109,"札苗北中","さつなえきた"]
[2110,"札幌中","さっぽろ"]
[2111,"東栄中","とうえい"]
[2112,"福移中","ふくい"]
[2113,"北栄中","ほくえい"]
[2114,"美香保中","みかほ"]
[2115,"明園中","めいえん"]
[2116,"元町中","もとまち"]
[2201,"琴似中","ことに"]
[2202,"西陵中","せいりょう"]
[2203,"手稲東中","ていねひがし"]
[2204,"西野中","にしの"]
[2205,"八軒中","はちけん"]
[2206,"八軒東中","はちけんひがし"]
[2207,"発寒中","はっさむ"]
[2208,"福井野中","ふくいの"]
[2209,"宮の丘中","みやのおか"]
[2210,"山の手養護中","やまのてようご"]
[2211,"陵北中","りょうほく"]
[2301,"石山中","いしやま"]
[2302,"定山渓中","じょうざんけい"]
[2303,"澄川中","すみかわ"]
[2304,"常盤中","ときわ"]
[2305,"藤野中","ふじの"]
[2306,"真駒内中","まこまない"]
[2307,"真駒内曙中","まこまないあけぼの"]
[2308,"簾舞中","みすまい"]
[2309,"南が丘中","みなみがおか"]
[2310,"藻岩中","もいわ"]
[2401,"あいの里東中","あいのさとひがし"]
[2402,"上篠路中","かみしのろ"]
[2403,"教育大附属中","きょういくだいふぞく"]
[2404,"光陽中","こうよう"]
[2405,"札幌聾中","さっぽろろう"]
[2406,"篠路中","しのろ"]
[2407,"篠路西中","しのろにし"]
[2408,"新川中","しんかわ"]
[2409,"新川西中","しんかわにし"]
[2410,"新琴似中","しんことに"]
[2411,"新琴似北中","しんことにきた"]
[2412,"太平中","たいへい"]
[2413,"屯田北中","とんでんきた"]
[2414,"屯田中央中","とんでんちゅうおう"]
[2415,"藤中","ふじ"]
[2416,"北辰中","ほくしん"]
[2417,"北陽中","ほくよう"]
[2501,"柏丘中","かしわがおか"]
[2502,"北白石中","きたしろいし"]
[2503,"幌東中","こうとう"]
[2504,"白石中","しろいし"]
[2505,"日章中","にっしょう"]
[2506,"東白石中","ひがししろいし"]
[2507,"北都中","ほくと"]
[2508,"米里中","よねさと"]
[2601,"あやめ野中","あやめの"]
[2602,"月寒中","つきさむ"]
[2603,"中の島中","なかのしま"]
[2604,"西岡中","にしおか"]
[2605,"西岡北中","にしおかきた"]
[2606,"八条中","はちじょう"]
[2607,"東月寒中","ひがしつきさむ"]
[2608,"羊丘中","ひつじがおか"]
[2609,"平岸中","ひらぎし"]
[2610,"陵陽中","りょうよう"]
[2701,"柏中","かしわ"]
[2702,"啓明中","けいめい"]
[2703,"向陵中","こうりょう"]
[2704,"聖心中","せいしん"]
[2705,"中央中","ちゅうおう"]
[2706,"中島中","なかじま"]
[2707,"伏見中","ふしみ"]
[2708,"北星中","ほくせい"]
[2709,"宮の森中","みやのもり"]
[2710,"山鼻中","やまはな"]
[2801,"稲積中","いなずみ"]
[2802,"稲穂中","いなほ"]
[2803,"新陵中","しんりょう"]
[2804,"手稲中","ていね"]
[2805,"手稲西中","ていねにし"]
[2806,"稲陵中","とうりょう"]
[2807,"星置中","ほしおき"]
[2808,"前田中","まえだ"]
[2809,"前田北中","まえだきた"]
[2901,"青葉中","あおば"]
[2902,"厚別中","あつべつ"]
[2903,"厚別北中","あつべつきた"]
[2904,"厚別南中","あつべつみなみ"]
[2905,"上野幌中","かみのっぽろ"]
[2906,"信濃中","しなの"]
[2905,"上野幌中","かみのっぽろ"]
[2906,"信濃中","しなの"]

{"sheet":"設定","index":8,"n_rows":36,"n_cols":37,"rows_kept":36,"cut":false,"hidden":true,"merged":[[0,0,0,1],[0,19,0,20],[0,15,0,17],[0,3,0,5],[0,7,0,9],[0,30,0,32],[0,34,0,36],[0,25,0,26],[0,22,0,23],[0,11,0,13]]}
["設定状況ほか",null,null,"校　種",null,null,null,"所在地",null,null,null,"部　門",null,null,null,"学　年",null,null,null,"曜日",null,null,"実施日",null,null,"性別",null,null,"双子",null,"成　績",null,null,null,"特　別　賞"]
["初期設定","*",null,1,"小学校",1,null,0,"清田区",0,null,"k","硬筆",{"$f":"L2","v":"k"},null,"k1","硬小1",{"$f":"P2","v":"k1"},null,1,"月",null,9,1,null,1,"1男",null,"○",null,"N","入選",{"$f":"AE2","v":"N"},null,1,"札幌市長賞",{"$f":"AI2","v":1}]
["人数CSV",null,null,2,"中学校",2,null,1,"東区",1,null,"m","毛筆",{"$f":"L3","v":"m"},null,"k2","硬小2",{"$f":"P3","v":"k2"},null,2,"火",null,10,2,null,2,"2女",null,null,null,"K","佳作","K",null,2,"札幌市議会議長賞",{"$f":"AI3","v":2}]
["名簿CSV",null,null,null,null,null,null,2,"西区",2,null,null,null,null,null,"s1","毛小1","s1",null,3,"水",null,null,3,null,null,null,null,null,null,"S","秀作","S",null,3,"札幌市教育委員会教育長賞",3]
["SysMode",2,null,null,null,null,null,3,"南区",3,null,null,null,null,null,"s2","毛小2","s2",null,4,"木",null,null,4,null,null,null,null,null,null,"T","特選","T",null,4,"札幌市ＰＴＡ協議会賞",4]
["元号",null,null,null,null,null,null,4,"北区",4,null,null,null,null,null,"s3","小3","s3",null,5,"金",null,null,5,null,null,null,null,null,null,"SS","推薦","SS",null,5,"札幌市教育協会賞",5]
["元号略記","R",null,null,null,null,null,5,"白石区",5,null,null,null,null,null,"s4","小4","s4",null,6,"土",null,null,6,null,null,null,null,null,null,"X","特別賞","X",null,6,"朝日新聞社賞",6]
["和歴年度",1,null,null,null,null,null,6,"豊平区",6,null,null,null,null,null,"s5","小5","s5",null,7,"日",null,null,7,null,null,null,null,null,null,null,null,null,null,7,"北海道書道教区連盟賞",7]
["西暦年度",null,null,null,null,null,null,7,"中央区",7,null,null,null,null,null,"s6","小6","s6",null,null,null,null,null,8,null,null,null,null,null,null,null,null,null,null,8,"札幌市書写書道教育研究会賞",8]
["回数",65,null,null,null,null,null,8,"手稲区",8,null,null,null,null,null,"c1","中1","c1",null,null,null,null,null,9]
[null,null,null,null,null,null,null,9,"厚別区",9,null,null,null,null,null,"c2","中2","c2",null,null,null,null,null,10]
["校種",null,null,null,null,null,null,null,null,null,null,null,null,null,null,"c3","中3","c3",null,null,null,null,null,11]
["所在区",null,null,null,null,null,null,null,null,null,null,null,null,null,null,null,null,null,null,null,null,null,null,12]
["学校名",null,null,null,null,null,null,null,null,null,null,null,null,null,null,null,null,null,null,null,null,null,null,13]
["がっこうめい",null,null,null,null,null,null,null,null,null,null,null,null,null,null,null,null,null,null,null,null,null,null,14]
["学校番号",null,null,null,null,null,null,null,null,null,null,null,null,null,null,null,null,null,null,null,null,null,null,15]
[null,null,null,null,null,null,null,null,null,null,null,null,null,null,null,null,null,null,null,null,null,null,null,16]
["担当者名",null,null,null,null,null,null,null,null,null,null,null,null,null,null,null,null,null,null,null,null,null,null,17]
["全児童生徒",null,null,null,null,null,null,null,null,null,null,null,null,null,null,null,null,null,null,null,null,null,null,18]
["実施日",null,null,null,null,null,null,null,null,null,null,null,null,null,null,null,null,null,null,null,null,null,null,19]
["電話番号",null,null,null,null,null,null,null,null,null,null,null,null,null,null,null,null,null,null,null,null,null,null,20]
["FAX番号",null,null,null,null,null,null,null,null,null,null,null,null,null,null,null,null,null,null,null,null,null,null,21]
[null,"名簿入力",null,null,"人数入力",null,null,null,null,null,null,null,null,null,null,null,null,null,null,null,null,null,null,22]
["k1",0,{"$f":"COUNTIF(部門,$A24)","v":0},null,0,null,null,null,null,null,null,null,null,null,null,null,null,null,null,null,null,null,null,23]
["k2",0,0,null,0,null,null,null,null,null,null,null,null,null,null,null,null,null,null,null,null,null,null,24]
["s1",0,0,null,0,null,null,null,null,null,null,null,null,null,null,null,null,null,null,null,null,null,null,25]
["s2",0,0,null,0,null,null,null,null,null,null,null,null,null,null,null,null,null,null,null,null,null,null,26]
["s3",0,0,null,0,null,null,null,null,null,null,null,null,null,null,null,null,null,null,null,null,null,null,27]
["s4",0,0,null,0,null,null,null,null,null,null,null,null,null,null,null,null,null,null,null,null,null,null,28]
["s5",0,0,null,0,null,null,null,null,null,null,null,null,null,null,null,null,null,null,null,null,null,null,29]
["s6",0,0,null,0,null,null,null,null,null,null,null,null,null,null,null,null,null,null,null,null,null,null,30]
["c1",0,0,null,0,null,null,null,null,null,null,null,null,null,null,null,null,null,null,null,null,null,null,31]
["c2",0,0,null,0]
["c3",0,0,null,0]
["合計",0,{"$f":"SUM(C24:C34)","v":0}]
["印刷枚数",0,{"$f":"INT((C35-1)/25)+1","v":0}]